Department Family,Entity,Date,Expense Type,Expense Area,Supplier,Supplier Type,Transaction Number,Amount,Description,Expenditure Type
Land Registry,Land Registry,02/01/2014,IS Service Delivery,Computer Equipment Maintenance,CGI IT UK Limited,Large,988023,86872,Computer Equipment Maintenance,Administration
Land Registry,Land Registry,02/01/2014,IS Service Delivery,Computer Equipment Maintenance,CGI IT UK Limited,Large,988023,80500,Computer Equipment Maintenance,Administration
Land Registry,Land Registry,02/01/2014,Dir: HR,Consultancy Non-IT Implement,Deloitte MCS Ltd,Large,988026,257439,Consultancy Non-IT Implement,Administration
Land Registry,Land Registry,02/01/2014,Central Facilities Management Team,"Property Management; Advice, Surveys & Inspections",EC Harris LLP,SME,988027,25850,"Property Management; Advice, Surveys & Inspections",Administration
Land Registry,Land Registry,02/01/2014,Independent Adjudicator,Independent Adjudicators's Office Costs,HM Courts & Tribunals Service,Large,988036,1087690,Independent Adjudicators's Office Costs,Administration
Land Registry,Land Registry,02/01/2014,Croydon Office,Rates Payable,Croydon Council,Large,477403,27987,Rates Payable,Administration
Land Registry,Land Registry,02/01/2014,Birkenhead Office,Rates Payable,Wirral Metrpolitan Borough Council,Large,477428,17389.9,Rates Payable,Administration
Land Registry,Land Registry,02/01/2014,Birkenhead Office,Rates Payable,Wirral Metrpolitan Borough Council,Large,477428,5051,Rates Payable,Administration
Land Registry,Land Registry,03/01/2014,Governance & Policy,IS Training,Capita Business Services Ltd,Large,988194,-477.63,IT Training,Administration
Land Registry,Land Registry,03/01/2014,Dir: HR,Consultancy Non-IT Implement,Deloitte MCS Ltd,Large,988197,164684,Consultancy Non-IT Implement,Administration
Land Registry,Land Registry,06/01/2014,Central Facilities Management Team,Hays Document Exchange (DX),DX Network Services Ltd,Large,988349,453366.15,DX Postage,Administration
Land Registry,Land Registry,06/01/2014,Director of Information Systems,Travel & Subsistence General Duty,Redfern Travel Ltd,Large,988345,1573.99,Travel & Subsistence General Duty,Administration
Land Registry,Land Registry,06/01/2014,Central Facilities Management Team,Travel & Subsistence General Duty,Redfern Travel Ltd,Large,988345,1035.63,Travel & Subsistence General Duty,Administration
Land Registry,Land Registry,06/01/2014,Director of Operations,Travel & Subsistence General Duty,Redfern Travel Ltd,Large,988345,74.55,Travel & Subsistence General Duty,Administration
Land Registry,Land Registry,06/01/2014,IS Service Delivery,Travel & Subsistence General Duty,Redfern Travel Ltd,Large,988345,303.41,Travel & Subsistence General Duty,Administration
Land Registry,Land Registry,06/01/2014,Survey & Mapping Services,Travel & Subsistence General Duty,Redfern Travel Ltd,Large,988345,210.33,Travel & Subsistence General Duty,Administration
Land Registry,Land Registry,06/01/2014,Property Asset Management Group,Travel & Subsistence General Duty,Redfern Travel Ltd,Large,988345,441.1,Travel & Subsistence General Duty,Administration
Land Registry,Land Registry,06/01/2014,Coventry Office,Travel & Subsistence General Duty,Redfern Travel Ltd,Large,988345,357.45,Travel & Subsistence General Duty,Administration
Land Registry,Land Registry,06/01/2014,Nottingham Office,Travel & Subsistence General Duty,Redfern Travel Ltd,Large,988345,63.93,Travel & Subsistence General Duty,Administration
Land Registry,Land Registry,06/01/2014,Director of Legal Services,Travel & Subsistence General Duty,Redfern Travel Ltd,Large,988345,596.53,Travel & Subsistence General Duty,Administration
Land Registry,Land Registry,06/01/2014,Corporate Legal Services,Travel & Subsistence General Duty,Redfern Travel Ltd,Large,988345,1142.37,Travel & Subsistence General Duty,Administration
Land Registry,Land Registry,06/01/2014,Guarantee & Litigation,Travel & Subsistence General Duty,Redfern Travel Ltd,Large,988345,143.88,Travel & Subsistence General Duty,Administration
Land Registry,Land Registry,06/01/2014,Registration Legal Services Group,Travel & Subsistence General Duty,Redfern Travel Ltd,Large,988345,505,Travel & Subsistence General Duty,Administration
Land Registry,Land Registry,06/01/2014,Learning and Development,Travel & Subsistence General Duty,Redfern Travel Ltd,Large,988345,-9.15,Travel & Subsistence General Duty,Administration
Land Registry,Land Registry,06/01/2014,Governance & Policy,Travel & Subsistence General Duty,Redfern Travel Ltd,Large,988345,156.16,Travel & Subsistence General Duty,Administration
Land Registry,Land Registry,06/01/2014,Finance Group,Travel & Subsistence General Duty,Redfern Travel Ltd,Large,988345,456.48,Travel & Subsistence General Duty,Administration
Land Registry,Land Registry,06/01/2014,Business Development,Travel & Subsistence General Duty,Redfern Travel Ltd,Large,988345,315.96,Travel & Subsistence General Duty,Administration
Land Registry,Land Registry,06/01/2014,Internal Solutions Group,Travel & Subsistence General Duty,Redfern Travel Ltd,Large,988345,375.44,Travel & Subsistence General Duty,Administration
Land Registry,Land Registry,06/01/2014,Internal Audit,Travel & Subsistence General Duty,Redfern Travel Ltd,Large,988345,-25.28,Travel & Subsistence General Duty,Administration
Land Registry,Land Registry,06/01/2014,Customer Services,Travel & Subsistence General Duty,Redfern Travel Ltd,Large,988345,156.32,Travel & Subsistence General Duty,Administration
Land Registry,Land Registry,06/01/2014,International Unit,Travel & Subsistence General Duty,Redfern Travel Ltd,Large,988345,854.06,Travel & Subsistence General Duty,Administration
Land Registry,Land Registry,06/01/2014,Projects and Programme Centre,Travel & Subsistence General Duty,Redfern Travel Ltd,Large,988345,318.82,Travel & Subsistence General Duty,Administration
Land Registry,Land Registry,06/01/2014,Corp Procurement,Travel & Subsistence General Duty,Redfern Travel Ltd,Large,988345,524.97,Travel & Subsistence General Duty,Administration
Land Registry,Land Registry,06/01/2014,Commercial Director,Travel & Subsistence General Duty,Redfern Travel Ltd,Large,988345,441.21,Travel & Subsistence General Duty,Administration
Land Registry,Land Registry,06/01/2014,Product Development & Management,Travel & Subsistence General Duty,Redfern Travel Ltd,Large,988345,1099.77,Travel & Subsistence General Duty,Administration
Land Registry,Land Registry,06/01/2014,HR,Travel & Subsistence General Duty,Redfern Travel Ltd,Large,988345,2790.8,Travel & Subsistence General Duty,Administration
Land Registry,Land Registry,06/01/2014,Research & Data Mining,Travel & Subsistence General Duty,Redfern Travel Ltd,Large,988345,116.55,Travel & Subsistence General Duty,Administration
Land Registry,Land Registry,06/01/2014,Stakeholder Management,Travel & Subsistence General Duty,Redfern Travel Ltd,Large,988345,90.84,Travel & Subsistence General Duty,Administration
Land Registry,Land Registry,06/01/2014,Commercial & Customer Strategy & Performance,Travel & Subsistence General Duty,Redfern Travel Ltd,Large,988345,160.6,Travel & Subsistence General Duty,Administration
Land Registry,Land Registry,06/01/2014,Central Operations Group,Travel & Subsistence General Duty,Redfern Travel Ltd,Large,988345,721.11,Travel & Subsistence General Duty,Administration
Land Registry,Land Registry,06/01/2014,Chief Executives Office,Travel & Subsistence General Duty,Redfern Travel Ltd,Large,988345,2529.25,Travel & Subsistence General Duty,Administration
Land Registry,Land Registry,06/01/2014,Dir: HR,Travel & Subsistence General Duty,Redfern Travel Ltd,Large,988345,3699.63,Travel & Subsistence General Duty,Administration
Land Registry,Land Registry,06/01/2014,Dir: Legal Services,Travel & Subsistence General Duty,Redfern Travel Ltd,Large,988345,354.86,Travel & Subsistence General Duty,Administration
Land Registry,Land Registry,06/01/2014,Dir: (Statutory) Commercial & Customer,Travel & Subsistence General Duty,Redfern Travel Ltd,Large,988345,571.65,Travel & Subsistence General Duty,Administration
Land Registry,Land Registry,06/01/2014,Strategy Team,Travel & Subsistence General Duty,Redfern Travel Ltd,Large,988345,81.07,Travel & Subsistence General Duty,Administration
Land Registry,Land Registry,06/01/2014,Forward Scanning,Maps & Plans Data Migration,TNT (UK) Ltd,Large,988347,195192.1,Maps & Plans Data Migration,Administration
Land Registry,Land Registry,06/01/2014,Weymouth Office,Rates Payable,West Dorset District Council,Large,477467,18487,Rates Payable,Administration
Land Registry,Land Registry,07/01/2014,Central Facilities Management Team,Transport Hire of Cars and Vans,Enterprise Rent-A-Car (UK) Ltd,Large,988511,21121.67,Transport Hire of Cars and Vans,Administration
Land Registry,Land Registry,08/01/2014,Telford Office,Reprographic Copy Costs,Steria Limited,Large,988749,-21.98,Reprographic Copy Costs,Administration
Land Registry,Land Registry,08/01/2014,Coventry Office,Reprographic Copy Costs,Steria Limited,Large,988749,87.47,Reprographic Copy Costs,Administration
Land Registry,Land Registry,08/01/2014,Croydon Office,Reprographic Copy Costs,Steria Limited,Large,988749,70.79,Reprographic Copy Costs,Administration
Land Registry,Land Registry,08/01/2014,IS Service Delivery,Computer Equipment Consumables,Steria Limited,Large,988749,3354.12,Computer Equipment Consumables,Administration
Land Registry,Land Registry,08/01/2014,Birkenhead Office,Reprographic Copy Costs,Steria Limited,Large,988749,117.58,Reprographic Copy Costs,Administration
Land Registry,Land Registry,08/01/2014,IS Service Delivery,DITI Printer Managed Service,Steria Limited,Large,988749,64093.9,IT Printer Managed Service,Administration
Land Registry,Land Registry,08/01/2014,Nottingham Office,Rent Payable,Dtz Debenham Tie Leung Ltd,SME,477570,13545.25,Rent Payable,Administration
Land Registry,Land Registry,09/01/2014,Governance & Policy,IS Training,Capita Business Services Ltd,Large,988969,24273.51,IT Training,Administration
Land Registry,Land Registry,09/01/2014,IS Service Delivery,Data Network Lines,Vodafone Corporate Ltd,Large,988984,58033.15,Data Network Lines,Administration
Land Registry,Land Registry,10/01/2014,Hull Office,Rates Payable,Kingston Upon Hull City Council,Large,477654,13424,Rates Payable,Administration
Land Registry,Land Registry,14/01/2014,Fylde Office,Security Expenses,Carillion Services Ltd,Large,989675,2599.19,Security Expenses,Administration
Land Registry,Land Registry,14/01/2014,Durham Office,FF&F:Maintenance,Carillion Services Ltd,Large,989675,183.16,FF&F:Maintenance,Administration
Land Registry,Land Registry,14/01/2014,Weymouth Office,Gas,Carillion Services Ltd,Large,989675,1460.85,Gas,Administration
Land Registry,Land Registry,14/01/2014,RFS1 - Telford,Gas,Carillion Services Ltd,Large,989675,312.04,Gas,Administration
Land Registry,Land Registry,14/01/2014,Telford Office,Gas,Carillion Services Ltd,Large,989675,4173.22,Gas,Administration
Land Registry,Land Registry,14/01/2014,Telford Office,Electricity,Carillion Services Ltd,Large,989675,5536.8,Electricity,Administration
Land Registry,Land Registry,14/01/2014,Birkenhead Office,Gas,Carillion Services Ltd,Large,989675,1893.28,Gas,Administration
Land Registry,Land Registry,14/01/2014,Birkenhead Office,Office Cleaning Expenses,Carillion Services Ltd,Large,989675,5925.56,Office Cleaning Expenses,Administration
Land Registry,Land Registry,14/01/2014,Birkenhead Office,Electricity,Carillion Services Ltd,Large,989675,4151.04,Electricity,Administration
Land Registry,Land Registry,14/01/2014,Wales Office,Gas,Carillion Services Ltd,Large,989675,1078.89,Gas,Administration
Land Registry,Land Registry,14/01/2014,Weymouth Office,Waste Disposal,Carillion Services Ltd,Large,989675,222.19,Waste Disposal,Administration
Land Registry,Land Registry,14/01/2014,Wales Office,Electricity,Carillion Services Ltd,Large,989675,5183.89,Electricity,Administration
Land Registry,Land Registry,14/01/2014,Croydon Office,Security Expenses,Carillion Services Ltd,Large,989675,9395.35,Security Expenses,Administration
Land Registry,Land Registry,14/01/2014,Croydon Office,FF&F:Maintenance,Carillion Services Ltd,Large,989675,183.16,FF&F:Maintenance,Administration
Land Registry,Land Registry,14/01/2014,Hull Office,Electricity,Carillion Services Ltd,Large,989675,6292.88,Electricity,Administration
Land Registry,Land Registry,14/01/2014,Telford Office,Water,Carillion Services Ltd,Large,989675,1189.62,Water,Administration
Land Registry,Land Registry,14/01/2014,Fylde Office,Electricity,Carillion Services Ltd,Large,989675,4781.11,Electricity,Administration
Land Registry,Land Registry,14/01/2014,Durham Office,Electricity,Carillion Services Ltd,Large,989675,4641.01,Electricity,Administration
Land Registry,Land Registry,14/01/2014,Birkenhead Office,Security Expenses,Carillion Services Ltd,Large,989675,3247.68,Security Expenses,Administration
Land Registry,Land Registry,14/01/2014,Durham Office,Gas,Carillion Services Ltd,Large,989675,1601.81,Gas,Administration
Land Registry,Land Registry,14/01/2014,Coventry Office,Electricity,Carillion Services Ltd,Large,989675,6801.92,Electricity,Administration
Land Registry,Land Registry,14/01/2014,Coventry Office,FF&F:Maintenance,Carillion Services Ltd,Large,989675,183.16,FF&F:Maintenance,Administration
Land Registry,Land Registry,14/01/2014,Coventry Office,Pest Control,Carillion Services Ltd,Large,989675,53.41,Pest Control,Administration
Land Registry,Land Registry,14/01/2014,Leicester Office,Gas,Carillion Services Ltd,Large,989675,1836.15,Gas,Administration
Land Registry,Land Registry,14/01/2014,Weymouth Office,Property Maintenance,Carillion Services Ltd,Large,989675,2213.91,Property Maintenance,Administration
Land Registry,Land Registry,14/01/2014,Fylde Office,Pest Control,Carillion Services Ltd,Large,989675,39.62,Pest Control,Administration
Land Registry,Land Registry,14/01/2014,Hull Office,Water,Carillion Services Ltd,Large,989675,383.35,Water,Administration
Land Registry,Land Registry,14/01/2014,RFS1 - Telford,Electricity,Carillion Services Ltd,Large,989675,41.97,Electricity,Administration
Land Registry,Land Registry,14/01/2014,Coventry Office,Gas,Carillion Services Ltd,Large,989675,4394.06,Gas,Administration
Land Registry,Land Registry,14/01/2014,Leicester Office,Electricity,Carillion Services Ltd,Large,989675,1819.68,Electricity,Administration
Land Registry,Land Registry,14/01/2014,Wales Office,Security Expenses,Carillion Services Ltd,Large,989675,2900.51,Security Expenses,Administration
Land Registry,Land Registry,14/01/2014,Gloucester Office,Gas,Carillion Services Ltd,Large,989675,1871.22,Gas,Administration
Land Registry,Land Registry,14/01/2014,Hull Office,Gas,Carillion Services Ltd,Large,989675,3475.44,Gas,Administration
Land Registry,Land Registry,14/01/2014,RFS5 - Durham Belmont,Gas,Carillion Services Ltd,Large,989675,735.94,Gas,Administration
Land Registry,Land Registry,14/01/2014,Fylde Office,Gas,Carillion Services Ltd,Large,989675,884.14,Gas,Administration
Land Registry,Land Registry,14/01/2014,Birkenhead Office,Property Maintenance,Carillion Services Ltd,Large,989675,4921.58,Property Maintenance,Administration
Land Registry,Land Registry,14/01/2014,Durham Office,Security Expenses,Carillion Services Ltd,Large,989675,3462.61,Security Expenses,Administration
Land Registry,Land Registry,14/01/2014,Coventry Office,Waste Disposal,Carillion Services Ltd,Large,989675,349.94,Waste Disposal,Administration
Land Registry,Land Registry,14/01/2014,Fylde Office,FF&F:Maintenance,Carillion Services Ltd,Large,989675,183.16,FF&F:Maintenance,Administration
Land Registry,Land Registry,14/01/2014,Weymouth Office,Electricity,Carillion Services Ltd,Large,989675,3639.54,Electricity,Administration
Land Registry,Land Registry,14/01/2014,Coventry Office,Water,Carillion Services Ltd,Large,989675,1750.45,Water,Administration
Land Registry,Land Registry,14/01/2014,Telford Office,Office Cleaning Expenses,Carillion Services Ltd,Large,989675,5321.49,Office Cleaning Expenses,Administration
Land Registry,Land Registry,14/01/2014,Gloucester Office,Water,Carillion Services Ltd,Large,989675,976.38,Water,Administration
Land Registry,Land Registry,14/01/2014,Gloucester Office,Electricity,Carillion Services Ltd,Large,989675,5457.81,Electricity,Administration
Land Registry,Land Registry,14/01/2014,Wales Office,Waste Disposal,Carillion Services Ltd,Large,989675,521.48,Waste Disposal,Administration
Land Registry,Land Registry,14/01/2014,Croydon Office,Property Maintenance,Carillion Services Ltd,Large,989675,7209.35,Property Maintenance,Administration
Land Registry,Land Registry,14/01/2014,Croydon Office,Electricity,Carillion Services Ltd,Large,989675,7000.77,Electricity,Administration
Land Registry,Land Registry,14/01/2014,Croydon Office,Gas,Carillion Services Ltd,Large,989675,3849.94,Gas,Administration
Land Registry,Land Registry,14/01/2014,Croydon Office,Vending Machine Consumables & Repairs,Carillion Services Ltd,Large,989675,190,Vending Machine Consumables & Repairs,Administration
Land Registry,Land Registry,14/01/2014,Croydon Office,Waste Disposal,Carillion Services Ltd,Large,989675,244.04,Waste Disposal,Administration
Land Registry,Land Registry,14/01/2014,Gloucester Office,Office Cleaning Expenses,Carillion Services Ltd,Large,989675,6783.15,Office Cleaning Expenses,Administration
Land Registry,Land Registry,14/01/2014,Gloucester Office,Waste Disposal,Carillion Services Ltd,Large,989675,233.82,Waste Disposal,Administration
Land Registry,Land Registry,14/01/2014,Gloucester Office,Security Expenses,Carillion Services Ltd,Large,989675,10547.61,Security Expenses,Administration
Land Registry,Land Registry,14/01/2014,Gloucester Office,FF&F:Maintenance,Carillion Services Ltd,Large,989675,183.16,FF&F:Maintenance,Administration
Land Registry,Land Registry,14/01/2014,Leicester Office,FF&F:Maintenance,Carillion Services Ltd,Large,989675,274.74,FF&F:Maintenance,Administration
Land Registry,Land Registry,14/01/2014,Croydon Office,Office Cleaning Expenses,Carillion Services Ltd,Large,989675,6190.75,Office Cleaning Expenses,Administration
Land Registry,Land Registry,14/01/2014,Durham Office,Pest Control,Carillion Services Ltd,Large,989675,49.02,Pest Control,Administration
Land Registry,Land Registry,14/01/2014,Gloucester Office,Property Maintenance,Carillion Services Ltd,Large,989675,3258.98,Property Maintenance,Administration
Land Registry,Land Registry,14/01/2014,Birkenhead Office,Waste Disposal,Carillion Services Ltd,Large,989675,632.65,Waste Disposal,Administration
Land Registry,Land Registry,14/01/2014,Peterborough Office,Vending Machine Consumables & Repairs,Carillion Services Ltd,Large,989675,148.49,Vending Machine Consumables & Repairs,Administration
Land Registry,Land Registry,14/01/2014,Hull Office,Grounds Maintenance,Carillion Services Ltd,Large,989675,651.82,Grounds Maintenance,Administration
Land Registry,Land Registry,14/01/2014,Durham Office,Property Maintenance,Carillion Services Ltd,Large,989675,5762.64,Property Maintenance,Administration
Land Registry,Land Registry,14/01/2014,Durham Office,Water,Carillion Services Ltd,Large,989675,7009.2,Water,Administration
Land Registry,Land Registry,14/01/2014,Durham Office,Office Cleaning Expenses,Carillion Services Ltd,Large,989675,8756.88,Office Cleaning Expenses,Administration
Land Registry,Land Registry,14/01/2014,Durham Office,Waste Disposal,Carillion Services Ltd,Large,989675,367.19,Waste Disposal,Administration
Land Registry,Land Registry,14/01/2014,Weymouth Office,Office Cleaning Expenses,Carillion Services Ltd,Large,989675,3855.75,Office Cleaning Expenses,Administration
Land Registry,Land Registry,14/01/2014,Weymouth Office,Pest Control,Carillion Services Ltd,Large,989675,41.9,Pest Control,Administration
Land Registry,Land Registry,14/01/2014,Weymouth Office,Security Expenses,Carillion Services Ltd,Large,989675,3124.89,Security Expenses,Administration
Land Registry,Land Registry,14/01/2014,Weymouth Office,FF&F:Maintenance,Carillion Services Ltd,Large,989675,183.16,FF&F:Maintenance,Administration
Land Registry,Land Registry,14/01/2014,Peterborough Office,Property Maintenance,Carillion Services Ltd,Large,989675,3108.73,Property Maintenance,Administration
Land Registry,Land Registry,14/01/2014,Peterborough Office,Office Cleaning Expenses,Carillion Services Ltd,Large,989675,3140.4,Office Cleaning Expenses,Administration
Land Registry,Land Registry,14/01/2014,Peterborough Office,Pest Control,Carillion Services Ltd,Large,989675,42.47,Pest Control,Administration
Land Registry,Land Registry,14/01/2014,Peterborough Office,Security Expenses,Carillion Services Ltd,Large,989675,-3.34,Security Expenses,Administration
Land Registry,Land Registry,14/01/2014,Telford Office,Property Maintenance,Carillion Services Ltd,Large,989675,5685.33,Property Maintenance,Administration
Land Registry,Land Registry,14/01/2014,Telford Office,Pest Control,Carillion Services Ltd,Large,989675,44.98,Pest Control,Administration
Land Registry,Land Registry,14/01/2014,Telford Office,Waste Disposal,Carillion Services Ltd,Large,989675,279.53,Waste Disposal,Administration
Land Registry,Land Registry,14/01/2014,Telford Office,Security Expenses,Carillion Services Ltd,Large,989675,2841.62,Security Expenses,Administration
Land Registry,Land Registry,14/01/2014,Telford Office,FF&F:Maintenance,Carillion Services Ltd,Large,989675,183.16,FF&F:Maintenance,Administration
Land Registry,Land Registry,14/01/2014,Coventry Office,Property Maintenance,Carillion Services Ltd,Large,989675,10837.28,Property Maintenance,Administration
Land Registry,Land Registry,14/01/2014,Coventry Office,Office Cleaning Expenses,Carillion Services Ltd,Large,989675,7725.95,Office Cleaning Expenses,Administration
Land Registry,Land Registry,14/01/2014,Coventry Office,Vending Machine Consumables & Repairs,Carillion Services Ltd,Large,989675,223.11,Vending Machine Consumables & Repairs,Administration
Land Registry,Land Registry,14/01/2014,Coventry Office,Security Expenses,Carillion Services Ltd,Large,989675,7948.86,Security Expenses,Administration
Land Registry,Land Registry,14/01/2014,Hull Office,Property Maintenance,Carillion Services Ltd,Large,989675,5890.89,Property Maintenance,Administration
Land Registry,Land Registry,14/01/2014,Hull Office,Office Cleaning Expenses,Carillion Services Ltd,Large,989675,5311.95,Office Cleaning Expenses,Administration
Land Registry,Land Registry,14/01/2014,Hull Office,Pest Control,Carillion Services Ltd,Large,989675,50.07,Pest Control,Administration
Land Registry,Land Registry,14/01/2014,Hull Office,Vending Machine Consumables & Repairs,Carillion Services Ltd,Large,989675,400.99,Vending Machine Consumables & Repairs,Administration
Land Registry,Land Registry,14/01/2014,Hull Office,Waste Disposal,Carillion Services Ltd,Large,989675,139.72,Waste Disposal,Administration
Land Registry,Land Registry,14/01/2014,Hull Office,Security Expenses,Carillion Services Ltd,Large,989675,3230.03,Security Expenses,Administration
Land Registry,Land Registry,14/01/2014,Hull Office,FF&F:Maintenance,Carillion Services Ltd,Large,989675,183.16,FF&F:Maintenance,Administration
Land Registry,Land Registry,14/01/2014,Leicester Office,Property Maintenance,Carillion Services Ltd,Large,989675,8362.91,Property Maintenance,Administration
Land Registry,Land Registry,14/01/2014,Leicester Office,Office Cleaning Expenses,Carillion Services Ltd,Large,989675,3926.96,Office Cleaning Expenses,Administration
Land Registry,Land Registry,14/01/2014,Leicester Office,Vending Machine Consumables & Repairs,Carillion Services Ltd,Large,989675,158.47,Vending Machine Consumables & Repairs,Administration
Land Registry,Land Registry,14/01/2014,Leicester Office,Waste Disposal,Carillion Services Ltd,Large,989675,333.11,Waste Disposal,Administration
Land Registry,Land Registry,14/01/2014,Leicester Office,Security Expenses,Carillion Services Ltd,Large,989675,2735.33,Security Expenses,Administration
Land Registry,Land Registry,14/01/2014,Wales Office,Property Maintenance,Carillion Services Ltd,Large,989675,4924.37,Property Maintenance,Administration
Land Registry,Land Registry,14/01/2014,Wales Office,Office Cleaning Expenses,Carillion Services Ltd,Large,989675,4944.54,Office Cleaning Expenses,Administration
Land Registry,Land Registry,14/01/2014,Wales Office,Pest Control,Carillion Services Ltd,Large,989675,59.38,Pest Control,Administration
Land Registry,Land Registry,14/01/2014,Wales Office,FF&F:Maintenance,Carillion Services Ltd,Large,989675,366.32,FF&F:Maintenance,Administration
Land Registry,Land Registry,14/01/2014,Nottingham Office,Property Maintenance,Carillion Services Ltd,Large,989675,26036.73,Property Maintenance,Administration
Land Registry,Land Registry,14/01/2014,Nottingham Office,Electricity,Carillion Services Ltd,Large,989675,3851.36,Electricity,Administration
Land Registry,Land Registry,14/01/2014,Nottingham Office,Gas,Carillion Services Ltd,Large,989675,2102.44,Gas,Administration
Land Registry,Land Registry,14/01/2014,Nottingham Office,Water,Carillion Services Ltd,Large,989675,572.32,Water,Administration
Land Registry,Land Registry,14/01/2014,Nottingham Office,Office Cleaning Expenses,Carillion Services Ltd,Large,989675,6822.54,Office Cleaning Expenses,Administration
Land Registry,Land Registry,14/01/2014,Nottingham Office,Pest Control,Carillion Services Ltd,Large,989675,139.45,Pest Control,Administration
Land Registry,Land Registry,14/01/2014,Nottingham Office,Waste Disposal,Carillion Services Ltd,Large,989675,314.41,Waste Disposal,Administration
Land Registry,Land Registry,14/01/2014,Nottingham Office,Security Expenses,Carillion Services Ltd,Large,989675,3414.98,Security Expenses,Administration
Land Registry,Land Registry,14/01/2014,Birkenhead Office,Grounds Maintenance,Carillion Services Ltd,Large,989675,371.05,Grounds Maintenance,Administration
Land Registry,Land Registry,14/01/2014,Birkenhead Office,Pest Control,Carillion Services Ltd,Large,989675,41.9,Pest Control,Administration
Land Registry,Land Registry,14/01/2014,Birkenhead Office,FF&F:Maintenance,Carillion Services Ltd,Large,989675,183.16,FF&F:Maintenance,Administration
Land Registry,Land Registry,14/01/2014,Fylde Office,Property Maintenance,Carillion Services Ltd,Large,989675,3705.68,Property Maintenance,Administration
Land Registry,Land Registry,14/01/2014,Fylde Office,Office Cleaning Expenses,Carillion Services Ltd,Large,989675,5397.45,Office Cleaning Expenses,Administration
Land Registry,Land Registry,14/01/2014,Fylde Office,Vending Machine Consumables & Repairs,Carillion Services Ltd,Large,989675,219.77,Vending Machine Consumables & Repairs,Administration
Land Registry,Land Registry,14/01/2014,Fylde Office,Waste Disposal,Carillion Services Ltd,Large,989675,111.34,Waste Disposal,Administration
Land Registry,Land Registry,14/01/2014,RFS5 - Durham Belmont,Property Maintenance,Carillion Services Ltd,Large,989675,5211.32,Property Maintenance,Administration
Land Registry,Land Registry,14/01/2014,RFS4 - Coventry,Property Maintenance,Carillion Services Ltd,Large,989675,55.5,Property Maintenance,Administration
Land Registry,Land Registry,14/01/2014,RFS4 - Coventry,Electricity,Carillion Services Ltd,Large,989675,-5770.14,Electricity,Administration
Land Registry,Land Registry,14/01/2014,RFS4 - Coventry,Office Cleaning Expenses,Carillion Services Ltd,Large,989675,248.61,Office Cleaning Expenses,Administration
Land Registry,Land Registry,14/01/2014,RFS1 - Telford,Property Maintenance,Carillion Services Ltd,Large,989675,1704.71,Property Maintenance,Administration
Land Registry,Land Registry,14/01/2014,RFS1 - Telford,Water,Carillion Services Ltd,Large,989675,685.37,Water,Administration
Land Registry,Land Registry,14/01/2014,RFS8 - Birkenhead,Office Cleaning Expenses,Carillion Services Ltd,Large,989675,7.55,Office Cleaning Expenses,Administration
Land Registry,Land Registry,14/01/2014,Weymouth Office,Vending Machine Consumables & Repairs,Carillion Services Ltd,Large,989675,120.66,Vending Machine Consumables & Repairs,Administration
Land Registry,Land Registry,14/01/2014,Fylde Office,Grounds Maintenance,Carillion Services Ltd,Large,989675,1364.72,Grounds Maintenance,Administration
Land Registry,Land Registry,14/01/2014,Leicester Office,Pest Control,Carillion Services Ltd,Large,989675,55.87,Pest Control,Administration
Land Registry,Land Registry,14/01/2014,Croydon Office,Pest Control,Carillion Services Ltd,Large,989675,40.24,Pest Control,Administration
Land Registry,Land Registry,14/01/2014,Telford Office,Grounds Maintenance,Carillion Services Ltd,Large,989675,1230.88,Grounds Maintenance,Administration
Land Registry,Land Registry,14/01/2014,Weymouth Office,Grounds Maintenance,Carillion Services Ltd,Large,989675,626.1,Grounds Maintenance,Administration
Land Registry,Land Registry,14/01/2014,Leicester Office,Grounds Maintenance,Carillion Services Ltd,Large,989675,221.5,Grounds Maintenance,Administration
Land Registry,Land Registry,14/01/2014,Gloucester Office,Grounds Maintenance,Carillion Services Ltd,Large,989675,658.69,Grounds Maintenance,Administration
Land Registry,Land Registry,14/01/2014,Durham Office,Grounds Maintenance,Carillion Services Ltd,Large,989675,940.59,Grounds Maintenance,Administration
Land Registry,Land Registry,14/01/2014,Gloucester Office,Pest Control,Carillion Services Ltd,Large,989675,46.74,Pest Control,Administration
Land Registry,Land Registry,14/01/2014,Gloucester Computer Centre,Electricity,Carillion Services Ltd,Large,989675,24237.88,Electricity,Administration
Land Registry,Land Registry,14/01/2014,Gloucester Computer Centre,Security Expenses,Carillion Services Ltd,Large,989675,8308.09,Security Expenses,Administration
Land Registry,Land Registry,14/01/2014,Gloucester Computer Centre,Office Cleaning Expenses,Carillion Services Ltd,Large,989675,10.68,Office Cleaning Expenses,Administration
Land Registry,Land Registry,14/01/2014,Nottingham Office,Grounds Maintenance,Carillion Services Ltd,Large,989675,78.81,Grounds Maintenance,Administration
Land Registry,Land Registry,14/01/2014,Gloucester Computer Centre,Gas,Carillion Services Ltd,Large,989675,434.16,Gas,Administration
Land Registry,Land Registry,14/01/2014,Gloucester Computer Centre,Waste Disposal,Carillion Services Ltd,Large,989675,93.09,Waste Disposal,Administration
Land Registry,Land Registry,14/01/2014,Gloucester Computer Centre,Property Maintenance,Carillion Services Ltd,Large,989675,7023.75,Property Maintenance,Administration
Land Registry,Land Registry,14/01/2014,RFS15 - Plymouth Drakes Hill Court,Electricity,Carillion Services Ltd,Large,989675,2027.74,Electricity,Administration
Land Registry,Land Registry,14/01/2014,RFS15 - Plymouth Drakes Hill Court,Gas,Carillion Services Ltd,Large,989675,828.62,Gas,Administration
Land Registry,Land Registry,14/01/2014,RFS15 - Plymouth Drakes Hill Court,Water,Carillion Services Ltd,Large,989675,28.09,Water,Administration
Land Registry,Land Registry,14/01/2014,RFS15 - Plymouth Drakes Hill Court,Office Cleaning Expenses,Carillion Services Ltd,Large,989675,521.67,Office Cleaning Expenses,Administration
Land Registry,Land Registry,14/01/2014,Coventry Office,Grounds Maintenance,Carillion Services Ltd,Large,989675,775.1,Grounds Maintenance,Administration
Land Registry,Land Registry,14/01/2014,Gloucester Office,Vending Machine Consumables & Repairs,Carillion Services Ltd,Large,989675,733.09,Vending Machine Consumables & Repairs,Administration
Land Registry,Land Registry,14/01/2014,Wales Office,Vending Machine Consumables & Repairs,Carillion Services Ltd,Large,989675,202.29,Vending Machine Consumables & Repairs,Administration
Land Registry,Land Registry,14/01/2014,Wales Office,Grounds Maintenance,Carillion Services Ltd,Large,989675,516.75,Grounds Maintenance,Administration
Land Registry,Land Registry,14/01/2014,Gloucester Computer Centre,Pest Control,Carillion Services Ltd,Large,989675,28.64,Pest Control,Administration
Land Registry,Land Registry,14/01/2014,RFS15 - Plymouth Drakes Hill Court,FF&F:Maintenance,Carillion Services Ltd,Large,989675,91.58,FF&F:Maintenance,Administration
Land Registry,Land Registry,14/01/2014,RFS15 - Plymouth Drakes Hill Court,Waste Disposal,Carillion Services Ltd,Large,989675,20.01,Waste Disposal,Administration
Land Registry,Land Registry,14/01/2014,RFS15 - Plymouth Drakes Hill Court,Property Maintenance,Carillion Services Ltd,Large,989675,3370.26,Property Maintenance,Administration
Land Registry,Land Registry,14/01/2014,RFS15 - Plymouth Drakes Hill Court,Pest Control,Carillion Services Ltd,Large,989675,543.33,Pest Control,Administration
Land Registry,Land Registry,14/01/2014,Gloucester Office,Hays Document Exchange (DX),Carillion Services Ltd,Large,989675,838.04,DX Postage,Administration
Land Registry,Land Registry,14/01/2014,Telford Office,Vending Machine Consumables & Repairs,Carillion Services Ltd,Large,989675,228,Vending Machine Consumables & Repairs,Administration
Land Registry,Land Registry,14/01/2014,Gloucester Computer Centre,FF&F:Maintenance,Carillion Services Ltd,Large,989675,183.16,FF&F:Maintenance,Administration
Land Registry,Land Registry,14/01/2014,Croydon Office,Grounds Maintenance,Carillion Services Ltd,Large,989675,65.07,Grounds Maintenance,Administration
Land Registry,Land Registry,14/01/2014,Gloucester Computer Centre,Grounds Maintenance,Carillion Services Ltd,Large,989675,157.79,Grounds Maintenance,Administration
Land Registry,Land Registry,14/01/2014,Peterborough Office,Grounds Maintenance,Carillion Services Ltd,Large,989675,-16.16,Grounds Maintenance,Administration
Land Registry,Land Registry,14/01/2014,RFS15 - Plymouth Drakes Hill Court,Grounds Maintenance,Carillion Services Ltd,Large,989675,297.27,Grounds Maintenance,Administration
Land Registry,Land Registry,14/01/2014,Nottingham Office,Vending Machine Consumables & Repairs,Carillion Services Ltd,Large,989675,135.82,Vending Machine Consumables & Repairs,Administration
Land Registry,Land Registry,14/01/2014,Governance & Policy,FM Managed Services,Carillion Services Ltd,Large,989675,11165.26,Facilities Managed Service,Administration
Land Registry,Land Registry,14/01/2014,Governance & Policy,FM Ext Helpdesk,Carillion Services Ltd,Large,989675,1259.29,Facilities External Help Desk,Administration
Land Registry,Land Registry,14/01/2014,RFS15 - Plymouth Drakes Hill Court,FM Managed Services,Carillion Services Ltd,Large,989675,671.51,Facilities Managed Service,Administration
Land Registry,Land Registry,14/01/2014,RFS15 - Plymouth Drakes Hill Court,FM Ext Helpdesk,Carillion Services Ltd,Large,989675,118.44,Facilities External Help Desk,Administration
Land Registry,Land Registry,14/01/2014,Weymouth Office,FM Managed Services,Carillion Services Ltd,Large,989675,3965.73,Facilities Managed Service,Administration
Land Registry,Land Registry,14/01/2014,Weymouth Office,FM Ext Helpdesk,Carillion Services Ltd,Large,989675,305.13,Facilities External Help Desk,Administration
Land Registry,Land Registry,14/01/2014,Croydon Office,FM Managed Services,Carillion Services Ltd,Large,989675,8118.66,Facilities Managed Service,Administration
Land Registry,Land Registry,14/01/2014,Croydon Office,FM Ext Helpdesk,Carillion Services Ltd,Large,989675,475.42,Facilities External Help Desk,Administration
Land Registry,Land Registry,14/01/2014,Wales Office,FM Managed Services,Carillion Services Ltd,Large,989675,7600.89,Facilities Managed Service,Administration
Land Registry,Land Registry,14/01/2014,Wales Office,FM Ext Helpdesk,Carillion Services Ltd,Large,989675,375.35,Facilities External Help Desk,Administration
Land Registry,Land Registry,14/01/2014,Coventry Office,FM Managed Services,Carillion Services Ltd,Large,989675,7911.83,Facilities Managed Service,Administration
Land Registry,Land Registry,14/01/2014,Coventry Office,FM Ext Helpdesk,Carillion Services Ltd,Large,989675,801.42,Facilities External Help Desk,Administration
Land Registry,Land Registry,14/01/2014,Gloucester Office,FM Managed Services,Carillion Services Ltd,Large,989675,4198.77,Facilities Managed Service,Administration
Land Registry,Land Registry,14/01/2014,Gloucester Office,FM Ext Helpdesk,Carillion Services Ltd,Large,989675,496.48,Facilities External Help Desk,Administration
Land Registry,Land Registry,14/01/2014,Gloucester Computer Centre,FM Managed Services,Carillion Services Ltd,Large,989675,1867.62,Facilities Managed Service,Administration
Land Registry,Land Registry,14/01/2014,Gloucester Computer Centre,FM Ext Helpdesk,Carillion Services Ltd,Large,989675,460.58,Facilities External Help Desk,Administration
Land Registry,Land Registry,14/01/2014,Leicester Office,FM Managed Services,Carillion Services Ltd,Large,989675,3745.53,Facilities Managed Service,Administration
Land Registry,Land Registry,14/01/2014,Leicester Office,FM Ext Helpdesk,Carillion Services Ltd,Large,989675,433.64,Facilities External Help Desk,Administration
Land Registry,Land Registry,14/01/2014,Nottingham Office,FM Managed Services,Carillion Services Ltd,Large,989675,10761.19,Facilities Managed Service,Administration
Land Registry,Land Registry,14/01/2014,Nottingham Office,FM Ext Helpdesk,Carillion Services Ltd,Large,989675,1531.8,Facilities External Help Desk,Administration
Land Registry,Land Registry,14/01/2014,Peterborough Office,FM Managed Services,Carillion Services Ltd,Large,989675,4425.82,Facilities Managed Service,Administration
Land Registry,Land Registry,14/01/2014,Peterborough Office,FM Ext Helpdesk,Carillion Services Ltd,Large,989675,505.94,Facilities External Help Desk,Administration
Land Registry,Land Registry,14/01/2014,Telford Office,FM Managed Services,Carillion Services Ltd,Large,989675,3697.03,Facilities Managed Service,Administration
Land Registry,Land Registry,14/01/2014,Telford Office,FM Ext Helpdesk,Carillion Services Ltd,Large,989675,419.14,Facilities External Help Desk,Administration
Land Registry,Land Registry,14/01/2014,RFS1 - Telford,FM Managed Services,Carillion Services Ltd,Large,989675,349.2,Facilities Managed Service,Administration
Land Registry,Land Registry,14/01/2014,RFS1 - Telford,FM Ext Helpdesk,Carillion Services Ltd,Large,989675,104.4,Facilities External Help Desk,Administration
Land Registry,Land Registry,14/01/2014,Birkenhead Office,FM Managed Services,Carillion Services Ltd,Large,989675,4828.99,Facilities Managed Service,Administration
Land Registry,Land Registry,14/01/2014,Birkenhead Office,FM Ext Helpdesk,Carillion Services Ltd,Large,989675,394.97,Facilities External Help Desk,Administration
Land Registry,Land Registry,14/01/2014,Durham Office,FM Managed Services,Carillion Services Ltd,Large,989675,7704.76,Facilities Managed Service,Administration
Land Registry,Land Registry,14/01/2014,Durham Office,FM Ext Helpdesk,Carillion Services Ltd,Large,989675,495.7,Facilities External Help Desk,Administration
Land Registry,Land Registry,14/01/2014,Fylde Office,FM Managed Services,Carillion Services Ltd,Large,989675,6951.41,Facilities Managed Service,Administration
Land Registry,Land Registry,14/01/2014,Fylde Office,FM Ext Helpdesk,Carillion Services Ltd,Large,989675,344.73,Facilities External Help Desk,Administration
Land Registry,Land Registry,14/01/2014,Hull Office,FM Managed Services,Carillion Services Ltd,Large,989675,4228.24,Facilities Managed Service,Administration
Land Registry,Land Registry,14/01/2014,Hull Office,FM Ext Helpdesk,Carillion Services Ltd,Large,989675,387.41,Facilities External Help Desk,Administration
Land Registry,Land Registry,14/01/2014,RFS4 - Coventry,FM Managed Services,Carillion Services Ltd,Large,989675,13.67,Facilities Managed Service,Administration
Land Registry,Land Registry,14/01/2014,RFS4 - Coventry,FM Ext Helpdesk,Carillion Services Ltd,Large,989675,7.13,Facilities External Help Desk,Administration
Land Registry,Land Registry,14/01/2014,Governance & Policy,Electricity,Carillion Services Ltd,Large,989675,41123.53,Electricity,Administration
Land Registry,Land Registry,14/01/2014,Governance & Policy,Gas,Carillion Services Ltd,Large,989675,2496.77,Gas,Administration
Land Registry,Land Registry,14/01/2014,Governance & Policy,Pest Control,Carillion Services Ltd,Large,989675,524.98,Pest Control,Administration
Land Registry,Land Registry,14/01/2014,Governance & Policy,Office Cleaning Expenses,Carillion Services Ltd,Large,989675,9308.35,Office Cleaning Expenses,Administration
Land Registry,Land Registry,14/01/2014,Governance & Policy,Security Expenses,Carillion Services Ltd,Large,989675,22660.03,Security Expenses,Administration
Land Registry,Land Registry,14/01/2014,Governance & Policy,Property Maintenance,Carillion Services Ltd,Large,989675,16001.91,Property Maintenance,Administration
Land Registry,Land Registry,14/01/2014,Governance & Policy,Grounds Maintenance,Carillion Services Ltd,Large,989675,1924.47,Grounds Maintenance,Administration
Land Registry,Land Registry,14/01/2014,Governance & Policy,FF&F:Maintenance,Carillion Services Ltd,Large,989675,549.48,FF&F:Maintenance,Administration
Land Registry,Land Registry,14/01/2014,Peterborough Office,Gas,Carillion Services Ltd,Large,989675,4486.81,Gas,Administration
Land Registry,Land Registry,14/01/2014,Dir: HR,Gas,Carillion Services Ltd,Large,989675,1536.85,Gas,Administration
Land Registry,Land Registry,14/01/2014,Dir: Finance,Gas,Carillion Services Ltd,Large,989675,274.52,Gas,Administration
Land Registry,Land Registry,14/01/2014,Governance & Policy,Waste Disposal,Carillion Services Ltd,Large,989675,2105.67,Waste Disposal,Administration
Land Registry,Land Registry,14/01/2014,Birkenhead Office,Vending Machine Consumables & Repairs,Carillion Services Ltd,Large,989675,740.63,Vending Machine Consumables & Repairs,Administration
Land Registry,Land Registry,14/01/2014,RFS8 - Birkenhead,Vending Machine Consumables & Repairs,Carillion Services Ltd,Large,989675,54.87,Vending Machine Consumables & Repairs,Administration
Land Registry,Land Registry,14/01/2014,Dir: HR,Electricity,Carillion Services Ltd,Large,989675,1474.39,Electricity,Administration
Land Registry,Land Registry,14/01/2014,Dir: HR,Waste Disposal,Carillion Services Ltd,Large,989675,60.7,Waste Disposal,Administration
Land Registry,Land Registry,14/01/2014,Dir: HR,Security Expenses,Carillion Services Ltd,Large,989675,939.73,Security Expenses,Administration
Land Registry,Land Registry,14/01/2014,Dir: HR,Property Management; Other Fees,Carillion Services Ltd,Large,989675,1535,Property Management; Other Fees,Administration
Land Registry,Land Registry,14/01/2014,Gloucester Computer Centre,Vending Machine Consumables & Repairs,Carillion Services Ltd,Large,989675,19.4,Vending Machine Consumables & Repairs,Administration
Land Registry,Land Registry,14/01/2014,Governance & Policy,Vending Machine Consumables & Repairs,Carillion Services Ltd,Large,989675,20.92,Vending Machine Consumables & Repairs,Administration
Land Registry,Land Registry,14/01/2014,Dir: Finance,Electricity,Carillion Services Ltd,Large,989675,1627.07,Electricity,Administration
Land Registry,Land Registry,14/01/2014,Fylde Office,Security Expenses,Carillion Services Ltd,Large,989675,45.72,Security Expenses,Administration
Land Registry,Land Registry,14/01/2014,Durham Office,FF&F:Maintenance,Carillion Services Ltd,Large,989675,1699.5,FF&F:Maintenance,Administration
Land Registry,Land Registry,14/01/2014,Birkenhead Office,Office Cleaning Expenses,Carillion Services Ltd,Large,989675,89.92,Office Cleaning Expenses,Administration
Land Registry,Land Registry,14/01/2014,Weymouth Office,Waste Disposal,Carillion Services Ltd,Large,989675,121.18,Waste Disposal,Administration
Land Registry,Land Registry,14/01/2014,Croydon Office,Security Expenses,Carillion Services Ltd,Large,989675,1128.97,Security Expenses,Administration
Land Registry,Land Registry,14/01/2014,Birkenhead Office,Security Expenses,Carillion Services Ltd,Large,989675,590.81,Security Expenses,Administration
Land Registry,Land Registry,14/01/2014,Coventry Office,FF&F:Maintenance,Carillion Services Ltd,Large,989675,654.96,FF&F:Maintenance,Administration
Land Registry,Land Registry,14/01/2014,Weymouth Office,Property Maintenance,Carillion Services Ltd,Large,989675,5094.34,Property Maintenance,Administration
Land Registry,Land Registry,14/01/2014,Birkenhead Office,Property Maintenance,Carillion Services Ltd,Large,989675,22046.94,Property Maintenance,Administration
Land Registry,Land Registry,14/01/2014,Durham Office,Security Expenses,Carillion Services Ltd,Large,989675,4360.01,Security Expenses,Administration
Land Registry,Land Registry,14/01/2014,Coventry Office,Waste Disposal,Carillion Services Ltd,Large,989675,120.43,Waste Disposal,Administration
Land Registry,Land Registry,14/01/2014,Telford Office,Office Cleaning Expenses,Carillion Services Ltd,Large,989675,1055.31,Office Cleaning Expenses,Administration
Land Registry,Land Registry,14/01/2014,Croydon Office,Property Maintenance,Carillion Services Ltd,Large,989675,17200.67,Property Maintenance,Administration
Land Registry,Land Registry,14/01/2014,Gloucester Office,Waste Disposal,Carillion Services Ltd,Large,989675,262.38,Waste Disposal,Administration
Land Registry,Land Registry,14/01/2014,Gloucester Office,FF&F:Maintenance,Carillion Services Ltd,Large,989675,1061.69,FF&F:Maintenance,Administration
Land Registry,Land Registry,14/01/2014,Leicester Office,FF&F:Maintenance,Carillion Services Ltd,Large,989675,2590.33,FF&F:Maintenance,Administration
Land Registry,Land Registry,14/01/2014,Gloucester Office,Property Maintenance,Carillion Services Ltd,Large,989675,55435.1,Property Maintenance,Administration
Land Registry,Land Registry,14/01/2014,Hull Office,Grounds Maintenance,Carillion Services Ltd,Large,989675,415,Grounds Maintenance,Administration
Land Registry,Land Registry,14/01/2014,Durham Office,Property Maintenance,Carillion Services Ltd,Large,989675,46038.89,Property Maintenance,Administration
Land Registry,Land Registry,14/01/2014,Durham Office,Office Cleaning Expenses,Carillion Services Ltd,Large,989675,133.75,Office Cleaning Expenses,Administration
Land Registry,Land Registry,14/01/2014,Durham Office,Waste Disposal,Carillion Services Ltd,Large,989675,548.22,Waste Disposal,Administration
Land Registry,Land Registry,14/01/2014,Weymouth Office,Security Expenses,Carillion Services Ltd,Large,989675,3055.92,Security Expenses,Administration
Land Registry,Land Registry,14/01/2014,Weymouth Office,FF&F:Maintenance,Carillion Services Ltd,Large,989675,1233.84,FF&F:Maintenance,Administration
Land Registry,Land Registry,14/01/2014,Peterborough Office,Property Maintenance,Carillion Services Ltd,Large,989675,426.2,Property Maintenance,Administration
Land Registry,Land Registry,14/01/2014,Telford Office,Property Maintenance,Carillion Services Ltd,Large,989675,4409.53,Property Maintenance,Administration
Land Registry,Land Registry,14/01/2014,Telford Office,Waste Disposal,Carillion Services Ltd,Large,989675,322.6,Waste Disposal,Administration
Land Registry,Land Registry,14/01/2014,Telford Office,Security Expenses,Carillion Services Ltd,Large,989675,2256.63,Security Expenses,Administration
Land Registry,Land Registry,14/01/2014,Telford Office,FF&F:Maintenance,Carillion Services Ltd,Large,989675,308.86,FF&F:Maintenance,Administration
Land Registry,Land Registry,14/01/2014,Coventry Office,Property Maintenance,Carillion Services Ltd,Large,989675,4541.19,Property Maintenance,Administration
Land Registry,Land Registry,14/01/2014,Coventry Office,Vending Machine Consumables & Repairs,Carillion Services Ltd,Large,989675,684.75,Vending Machine Consumables & Repairs,Administration
Land Registry,Land Registry,14/01/2014,Hull Office,Property Maintenance,Carillion Services Ltd,Large,989675,17810.79,Property Maintenance,Administration
Land Registry,Land Registry,14/01/2014,Hull Office,Security Expenses,Carillion Services Ltd,Large,989675,81.49,Security Expenses,Administration
Land Registry,Land Registry,14/01/2014,Hull Office,FF&F:Maintenance,Carillion Services Ltd,Large,989675,518.8,FF&F:Maintenance,Administration
Land Registry,Land Registry,14/01/2014,Leicester Office,Property Maintenance,Carillion Services Ltd,Large,989675,7649.97,Property Maintenance,Administration
Land Registry,Land Registry,14/01/2014,Leicester Office,Waste Disposal,Carillion Services Ltd,Large,989675,121.18,Waste Disposal,Administration
Land Registry,Land Registry,14/01/2014,Leicester Office,Security Expenses,Carillion Services Ltd,Large,989675,1009.76,Security Expenses,Administration
Land Registry,Land Registry,14/01/2014,Wales Office,Property Maintenance,Carillion Services Ltd,Large,989675,12794.73,Property Maintenance,Administration
Land Registry,Land Registry,14/01/2014,Wales Office,FF&F:Maintenance,Carillion Services Ltd,Large,989675,827.75,FF&F:Maintenance,Administration
Land Registry,Land Registry,14/01/2014,Nottingham Office,Property Maintenance,Carillion Services Ltd,Large,989675,54271.09,Property Maintenance,Administration
Land Registry,Land Registry,14/01/2014,Nottingham Office,Waste Disposal,Carillion Services Ltd,Large,989675,2324.47,Waste Disposal,Administration
Land Registry,Land Registry,14/01/2014,Nottingham Office,Security Expenses,Carillion Services Ltd,Large,989675,117.14,Security Expenses,Administration
Land Registry,Land Registry,14/01/2014,Nottingham Office,FF&F:Maintenance,Carillion Services Ltd,Large,989675,191.73,FF&F:Maintenance,Administration
Land Registry,Land Registry,14/01/2014,Birkenhead Office,Grounds Maintenance,Carillion Services Ltd,Large,989675,311.25,Grounds Maintenance,Administration
Land Registry,Land Registry,14/01/2014,Birkenhead Office,FF&F:Maintenance,Carillion Services Ltd,Large,989675,1073.24,FF&F:Maintenance,Administration
Land Registry,Land Registry,14/01/2014,Fylde Office,Property Maintenance,Carillion Services Ltd,Large,989675,4191.34,Property Maintenance,Administration
Land Registry,Land Registry,14/01/2014,Fylde Office,Waste Disposal,Carillion Services Ltd,Large,989675,208.43,Waste Disposal,Administration
Land Registry,Land Registry,14/01/2014,Fylde Office,Grounds Maintenance,Carillion Services Ltd,Large,989675,830,Grounds Maintenance,Administration
Land Registry,Land Registry,14/01/2014,Telford Office,Grounds Maintenance,Carillion Services Ltd,Large,989675,622.5,Grounds Maintenance,Administration
Land Registry,Land Registry,14/01/2014,Weymouth Office,Grounds Maintenance,Carillion Services Ltd,Large,989675,192.98,Grounds Maintenance,Administration
Land Registry,Land Registry,14/01/2014,Leicester Office,Grounds Maintenance,Carillion Services Ltd,Large,989675,639.64,Grounds Maintenance,Administration
Land Registry,Land Registry,14/01/2014,Gloucester Office,Grounds Maintenance,Carillion Services Ltd,Large,989675,575.81,Grounds Maintenance,Administration
Land Registry,Land Registry,14/01/2014,Durham Office,Grounds Maintenance,Carillion Services Ltd,Large,989675,933.75,Grounds Maintenance,Administration
Land Registry,Land Registry,14/01/2014,Gloucester Computer Centre,Property Maintenance,Carillion Services Ltd,Large,989675,3486.51,Property Maintenance,Administration
Land Registry,Land Registry,14/01/2014,Wales Office,Grounds Maintenance,Carillion Services Ltd,Large,989675,544.69,Grounds Maintenance,Administration
Land Registry,Land Registry,14/01/2014,Gloucester Computer Centre,Grounds Maintenance,Carillion Services Ltd,Large,989675,420.19,Grounds Maintenance,Administration
Land Registry,Land Registry,14/01/2014,RFS15 - Plymouth Drakes Hill Court,Grounds Maintenance,Carillion Services Ltd,Large,989675,435.75,Grounds Maintenance,Administration
Land Registry,Land Registry,14/01/2014,Birkenhead Office,FF&F:Removals,Carillion Services Ltd,Large,989675,4043.32,FF&F:Removals,Administration
Land Registry,Land Registry,14/01/2014,Hull Office,FM Managed Services,Carillion Services Ltd,Large,989675,0.04,Facilities Managed Service,Administration
Land Registry,Land Registry,14/01/2014,Governance & Policy,Security Expenses,Carillion Services Ltd,Large,989675,174.59,Security Expenses,Administration
Land Registry,Land Registry,14/01/2014,Governance & Policy,Property Maintenance,Carillion Services Ltd,Large,989675,23105.87,Property Maintenance,Administration
Land Registry,Land Registry,14/01/2014,Governance & Policy,Grounds Maintenance,Carillion Services Ltd,Large,989675,1223.21,Grounds Maintenance,Administration
Land Registry,Land Registry,14/01/2014,Governance & Policy,FF&F:Maintenance,Carillion Services Ltd,Large,989675,1948.94,FF&F:Maintenance,Administration
Land Registry,Land Registry,14/01/2014,Dir: Finance,Property Management; Other Fees,Carillion Services Ltd,Large,989675,267.5,Property Management; Other Fees,Administration
Land Registry,Land Registry,14/01/2014,Governance & Policy,Waste Disposal,Carillion Services Ltd,Large,989675,186.85,Waste Disposal,Administration
Land Registry,Land Registry,14/01/2014,Dir: HR,Office Cleaning Expenses,Carillion Services Ltd,Large,989675,203.35,Office Cleaning Expenses,Administration
Land Registry,Land Registry,14/01/2014,Croydon Office,Property Maintenance,Carillion Services Ltd,Large,989675,2342.16,Property Maintenance,Administration
Land Registry,Land Registry,14/01/2014,Coventry Office,Property Maintenance,Carillion Services Ltd,Large,989675,10544.56,Property Maintenance,Administration
Land Registry,Land Registry,14/01/2014,Hull Office,Property Maintenance,Carillion Services Ltd,Large,989675,66785.37,Property Maintenance,Administration
Land Registry,Land Registry,14/01/2014,Leicester Office,Property Maintenance,Carillion Services Ltd,Large,989675,32594.91,Property Maintenance,Administration
Land Registry,Land Registry,14/01/2014,Wales Office,Property Maintenance,Carillion Services Ltd,Large,989675,14775.29,Property Maintenance,Administration
Land Registry,Land Registry,14/01/2014,Gloucester Computer Centre,Property Maintenance,Carillion Services Ltd,Large,989675,128.4,Property Maintenance,Administration
Land Registry,Land Registry,14/01/2014,Governance & Policy,Property Maintenance,Carillion Services Ltd,Large,989675,4982.95,Property Maintenance,Administration
Land Registry,Land Registry,14/01/2014,Peterborough Office,Service Charges,Commercial Estates Group Ltd,SME,992858,21320.29,Service Charges,Administration
Land Registry,Land Registry,14/01/2014,IS Service Delivery,Computer Equipment Maintenance,IBM United Kingdom Ltd,Large,989722,62250,Computer Equipment Maintenance,Administration
Land Registry,Land Registry,14/01/2014,IS Service Delivery,Computer Equipment Maintenance,Specialist Computer Centres Plc - SCC,Large,989741,38172.53,Computer Equipment Maintenance,Administration
Land Registry,Land Registry,14/01/2014,Peterborough Office,Rent Payable,Commercial Estates Group Ltd,SME,801357,25584.35,Rent Payable,Administration
Land Registry,Land Registry,14/01/2014,Peterborough Office,Rent Payable,Commercial Estates Group Ltd,SME,801356,59221.8,Rent Payable,Administration
Land Registry,Land Registry,15/01/2014,Business Continuity,Travel & Subsistence General Duty,Redfern Travel Ltd,Large,989988,162.77,Travel & Subsistence General Duty,Administration
Land Registry,Land Registry,15/01/2014,Director of Information Systems,Travel & Subsistence General Duty,Redfern Travel Ltd,Large,989988,794.01,Travel & Subsistence General Duty,Administration
Land Registry,Land Registry,15/01/2014,Weymouth Office,Travel & Subsistence General Duty,Redfern Travel Ltd,Large,989988,81.04,Travel & Subsistence General Duty,Administration
Land Registry,Land Registry,15/01/2014,Peterborough Office,Travel & Subsistence General Duty,Redfern Travel Ltd,Large,989988,227.43,Travel & Subsistence General Duty,Administration
Land Registry,Land Registry,15/01/2014,Employee & Management Support Manager,Travel & Subsistence General Duty,Redfern Travel Ltd,Large,989988,295.61,Travel & Subsistence General Duty,Administration
Land Registry,Land Registry,15/01/2014,Croydon Office,Travel & Subsistence General Duty,Redfern Travel Ltd,Large,989988,534.69,Travel & Subsistence General Duty,Administration
Land Registry,Land Registry,15/01/2014,Central Facilities Management Team,Travel & Subsistence General Duty,Redfern Travel Ltd,Large,989988,537.36,Travel & Subsistence General Duty,Administration
Land Registry,Land Registry,15/01/2014,Plymouth Office,Travel & Subsistence General Duty,Redfern Travel Ltd,Large,989988,140.79,Travel & Subsistence General Duty,Administration
Land Registry,Land Registry,15/01/2014,Director of Operations,Travel & Subsistence General Duty,Redfern Travel Ltd,Large,989988,1.56,Travel & Subsistence General Duty,Administration
Land Registry,Land Registry,15/01/2014,Gloucester Office,Travel & Subsistence General Duty,Redfern Travel Ltd,Large,989988,176.96,Travel & Subsistence General Duty,Administration
Land Registry,Land Registry,15/01/2014,IS Service Delivery,Travel & Subsistence General Duty,Redfern Travel Ltd,Large,989988,1803.28,Travel & Subsistence General Duty,Administration
Land Registry,Land Registry,15/01/2014,Survey & Mapping Services,Travel & Subsistence General Duty,Redfern Travel Ltd,Large,989988,243.16,Travel & Subsistence General Duty,Administration
Land Registry,Land Registry,15/01/2014,Telford Office,Travel & Subsistence General Duty,Redfern Travel Ltd,Large,989988,21.25,Travel & Subsistence General Duty,Administration
Land Registry,Land Registry,15/01/2014,Hull Office,Travel & Subsistence General Duty,Redfern Travel Ltd,Large,989988,403.23,Travel & Subsistence General Duty,Administration
Land Registry,Land Registry,15/01/2014,Property Asset Management Group,Travel & Subsistence General Duty,Redfern Travel Ltd,Large,989988,549.34,Travel & Subsistence General Duty,Administration
Land Registry,Land Registry,15/01/2014,Coventry Office,Travel & Subsistence General Duty,Redfern Travel Ltd,Large,989988,66.95,Travel & Subsistence General Duty,Administration
Land Registry,Land Registry,15/01/2014,Durham Office,Travel & Subsistence General Duty,Redfern Travel Ltd,Large,989988,753.98,Travel & Subsistence General Duty,Administration
Land Registry,Land Registry,15/01/2014,Nottingham Office,Travel & Subsistence General Duty,Redfern Travel Ltd,Large,989988,69.81,Travel & Subsistence General Duty,Administration
Land Registry,Land Registry,15/01/2014,Director of Legal Services,Travel & Subsistence General Duty,Redfern Travel Ltd,Large,989988,764.35,Travel & Subsistence General Duty,Administration
Land Registry,Land Registry,15/01/2014,National Lawyer Training,Travel & Subsistence General Duty,Redfern Travel Ltd,Large,989988,137.91,Travel & Subsistence General Duty,Administration
Land Registry,Land Registry,15/01/2014,Corporate Legal Services,Travel & Subsistence General Duty,Redfern Travel Ltd,Large,989988,563.45,Travel & Subsistence General Duty,Administration
Land Registry,Land Registry,15/01/2014,Guarantee & Litigation,Travel & Subsistence General Duty,Redfern Travel Ltd,Large,989988,243.11,Travel & Subsistence General Duty,Administration
Land Registry,Land Registry,15/01/2014,Technical Assurance Group,Travel & Subsistence General Duty,Redfern Travel Ltd,Large,989988,89.1,Travel & Subsistence General Duty,Administration
Land Registry,Land Registry,15/01/2014,Registration Legal Services Group,Travel & Subsistence General Duty,Redfern Travel Ltd,Large,989988,50.86,Travel & Subsistence General Duty,Administration
Land Registry,Land Registry,15/01/2014,Learning and Development,Travel & Subsistence General Duty,Redfern Travel Ltd,Large,989988,986.19,Travel & Subsistence General Duty,Administration
Land Registry,Land Registry,15/01/2014,Governance & Policy,Travel & Subsistence General Duty,Redfern Travel Ltd,Large,989988,593.4,Travel & Subsistence General Duty,Administration
Land Registry,Land Registry,15/01/2014,Finance Group,Travel & Subsistence General Duty,Redfern Travel Ltd,Large,989988,312.8,Travel & Subsistence General Duty,Administration
Land Registry,Land Registry,15/01/2014,Business Development,Travel & Subsistence General Duty,Redfern Travel Ltd,Large,989988,1136.92,Travel & Subsistence General Duty,Administration
Land Registry,Land Registry,15/01/2014,Internal Solutions Group,Travel & Subsistence General Duty,Redfern Travel Ltd,Large,989988,850.36,Travel & Subsistence General Duty,Administration
Land Registry,Land Registry,15/01/2014,Internal Audit,Travel & Subsistence General Duty,Redfern Travel Ltd,Large,989988,32.08,Travel & Subsistence General Duty,Administration
Land Registry,Land Registry,15/01/2014,Customer Services,Travel & Subsistence General Duty,Redfern Travel Ltd,Large,989988,369.65,Travel & Subsistence General Duty,Administration
Land Registry,Land Registry,15/01/2014,International Unit,Travel & Subsistence General Duty,Redfern Travel Ltd,Large,989988,1004.02,Travel & Subsistence General Duty,Administration
Land Registry,Land Registry,15/01/2014,Projects and Programme Centre,Travel & Subsistence General Duty,Redfern Travel Ltd,Large,989988,207.8,Travel & Subsistence General Duty,Administration
Land Registry,Land Registry,15/01/2014,Corp Procurement,Travel & Subsistence General Duty,Redfern Travel Ltd,Large,989988,495.8,Travel & Subsistence General Duty,Administration
Land Registry,Land Registry,15/01/2014,Commercial Director,Travel & Subsistence General Duty,Redfern Travel Ltd,Large,989988,229.54,Travel & Subsistence General Duty,Administration
Land Registry,Land Registry,15/01/2014,Product Development & Management,Travel & Subsistence General Duty,Redfern Travel Ltd,Large,989988,834.09,Travel & Subsistence General Duty,Administration
Land Registry,Land Registry,15/01/2014,HR,Travel & Subsistence General Duty,Redfern Travel Ltd,Large,989988,2657.5,Travel & Subsistence General Duty,Administration
Land Registry,Land Registry,15/01/2014,Research & Data Mining,Travel & Subsistence General Duty,Redfern Travel Ltd,Large,989988,388.5,Travel & Subsistence General Duty,Administration
Land Registry,Land Registry,15/01/2014,Commercial & Customer Strategy & Performance,Travel & Subsistence General Duty,Redfern Travel Ltd,Large,989988,1285.01,Travel & Subsistence General Duty,Administration
Land Registry,Land Registry,15/01/2014,Central Operations Group,Travel & Subsistence General Duty,Redfern Travel Ltd,Large,989988,2325,Travel & Subsistence General Duty,Administration
Land Registry,Land Registry,15/01/2014,Chief Executives Office,Travel & Subsistence General Duty,Redfern Travel Ltd,Large,989988,55.9,Travel & Subsistence General Duty,Administration
Land Registry,Land Registry,15/01/2014,Dir: (Add Value) Commercial & Customer,Travel & Subsistence General Duty,Redfern Travel Ltd,Large,989988,173.84,Travel & Subsistence General Duty,Administration
Land Registry,Land Registry,15/01/2014,Dir: HR,Travel & Subsistence General Duty,Redfern Travel Ltd,Large,989988,3119.86,Travel & Subsistence General Duty,Administration
Land Registry,Land Registry,15/01/2014,Dir: Legal Services,Travel & Subsistence General Duty,Redfern Travel Ltd,Large,989988,300.44,Travel & Subsistence General Duty,Administration
Land Registry,Land Registry,15/01/2014,Dir: Information Systems,Travel & Subsistence General Duty,Redfern Travel Ltd,Large,989988,230.67,Travel & Subsistence General Duty,Administration
Land Registry,Land Registry,15/01/2014,Dir: (Statutory) Commercial & Customer,Travel & Subsistence General Duty,Redfern Travel Ltd,Large,989988,1274.65,Travel & Subsistence General Duty,Administration
Land Registry,Land Registry,16/01/2014,Wales Office,Letter Post,Royal Mail,Large,990260,8884.24,Letter Post,Administration
Land Registry,Land Registry,16/01/2014,Durham Office,Letter Post,Royal Mail,Large,990260,7039.49,Letter Post,Administration
Land Registry,Land Registry,16/01/2014,Peterborough Office,Letter Post,Royal Mail,Large,990260,2308.34,Letter Post,Administration
Land Registry,Land Registry,16/01/2014,Fylde Office,Letter Post,Royal Mail,Large,990260,8246.45,Letter Post,Administration
Land Registry,Land Registry,16/01/2014,Croydon Office,Letter Post,Royal Mail,Large,990260,2706.91,Letter Post,Administration
Land Registry,Land Registry,16/01/2014,Gloucester Office,Letter Post,Royal Mail,Large,990260,3750.17,Letter Post,Administration
Land Registry,Land Registry,16/01/2014,Leicester Office,Letter Post,Royal Mail,Large,990260,2382.66,Letter Post,Administration
Land Registry,Land Registry,16/01/2014,Nottingham Office,Letter Post,Royal Mail,Large,990260,4695.31,Letter Post,Administration
Land Registry,Land Registry,16/01/2014,Plymouth Office,Letter Post,Royal Mail,Large,990260,2340.46,Letter Post,Administration
Land Registry,Land Registry,16/01/2014,Weymouth Office,Letter Post,Royal Mail,Large,990260,2770.2,Letter Post,Administration
Land Registry,Land Registry,16/01/2014,Telford Office,Letter Post,Royal Mail,Large,990260,2911.17,Letter Post,Administration
Land Registry,Land Registry,16/01/2014,Coventry Office,Letter Post,Royal Mail,Large,990260,10120.58,Letter Post,Administration
Land Registry,Land Registry,16/01/2014,Hull Office,Letter Post,Royal Mail,Large,990260,2358.33,Letter Post,Administration
Land Registry,Land Registry,16/01/2014,Birkenhead Office,Letter Post,Royal Mail,Large,990260,6059.31,Letter Post,Administration
Land Registry,Land Registry,16/01/2014,Land Charges,Letter Post,Royal Mail,Large,990260,780.16,Letter Post,Administration
Land Registry,Land Registry,16/01/2014,Central Facilities Management Team,Letter Post,Royal Mail,Large,990260,0.68,Letter Post,Administration
Land Registry,Land Registry,16/01/2014,IS Service Delivery,Letter Post,Royal Mail,Large,990260,15285.49,Letter Post,Administration
Land Registry,Land Registry,16/01/2014,Peterborough Office,Parcel and Datapost,Royal Mail,Large,990260,10.87,Parcel and Datapost,Administration
Land Registry,Land Registry,20/01/2014,Leicester Office,Stationery National Contracts,Banner Business Services Ltd,Large,990562,2926.09,Stationery National Contracts,Administration
Land Registry,Land Registry,20/01/2014,Durham Office,Stationery National Contracts,Banner Business Services Ltd,Large,990562,4396.88,Stationery National Contracts,Administration
Land Registry,Land Registry,20/01/2014,Fylde Office,Stationery National Contracts,Banner Business Services Ltd,Large,990562,2451.68,Stationery National Contracts,Administration
Land Registry,Land Registry,20/01/2014,Croydon Office,Stationery National Contracts,Banner Business Services Ltd,Large,990562,2145.64,Stationery National Contracts,Administration
Land Registry,Land Registry,20/01/2014,Gloucester Office,Stationery National Contracts,Banner Business Services Ltd,Large,990562,4029.18,Stationery National Contracts,Administration
Land Registry,Land Registry,20/01/2014,Nottingham Office,Stationery National Contracts,Banner Business Services Ltd,Large,990562,3921.82,Stationery National Contracts,Administration
Land Registry,Land Registry,20/01/2014,Birkenhead Office,Stationery National Contracts,Banner Business Services Ltd,Large,990562,2983.53,Stationery National Contracts,Administration
Land Registry,Land Registry,20/01/2014,Plymouth Office,Stationery National Contracts,Banner Business Services Ltd,Large,990562,1739.98,Stationery National Contracts,Administration
Land Registry,Land Registry,20/01/2014,Weymouth Office,Stationery National Contracts,Banner Business Services Ltd,Large,990562,2086.66,Stationery National Contracts,Administration
Land Registry,Land Registry,20/01/2014,Peterborough Office,Stationery National Contracts,Banner Business Services Ltd,Large,990562,2875.25,Stationery National Contracts,Administration
Land Registry,Land Registry,20/01/2014,Telford Office,Stationery National Contracts,Banner Business Services Ltd,Large,990562,2405.12,Stationery National Contracts,Administration
Land Registry,Land Registry,20/01/2014,Coventry Office,Stationery National Contracts,Banner Business Services Ltd,Large,990562,8382.85,Stationery National Contracts,Administration
Land Registry,Land Registry,20/01/2014,Hull Office,Stationery National Contracts,Banner Business Services Ltd,Large,990562,2511.11,Stationery National Contracts,Administration
Land Registry,Land Registry,20/01/2014,Wales Office,Stationery National Contracts,Banner Business Services Ltd,Large,990562,4430.24,Stationery National Contracts,Administration
Land Registry,Land Registry,20/01/2014,Land Charges,Stationery National Contracts,Banner Business Services Ltd,Large,990562,387.44,Stationery National Contracts,Administration
Land Registry,Land Registry,20/01/2014,Central Facilities Management Team,Waste Disposal,Banner Business Services Ltd,Large,990562,17568.75,Waste Disposal,Administration
Land Registry,Land Registry,20/01/2014,Property Asset Management Group,Stationery National Contracts,Banner Business Services Ltd,Large,990562,30.59,Stationery National Contracts,Administration
Land Registry,Land Registry,20/01/2014,IS Service Delivery,Stationery National Contracts,Banner Business Services Ltd,Large,990562,4289.28,Stationery National Contracts,Administration
Land Registry,Land Registry,20/01/2014,Governance & Policy,Stationery National Contracts,Banner Business Services Ltd,Large,990562,241.14,Stationery National Contracts,Administration
Land Registry,Land Registry,20/01/2014,Learning and Development,Stationery National Contracts,Banner Business Services Ltd,Large,990562,98.54,Stationery National Contracts,Administration
Land Registry,Land Registry,20/01/2014,Finance Group,Stationery National Contracts,Banner Business Services Ltd,Large,990562,40.83,Stationery National Contracts,Administration
Land Registry,Land Registry,20/01/2014,Corp Procurement,Stationery National Contracts,Banner Business Services Ltd,Large,990562,33.92,Stationery National Contracts,Administration
Land Registry,Land Registry,20/01/2014,Projects and Programme Centre,Stationery National Contracts,Banner Business Services Ltd,Large,990562,103.02,Stationery National Contracts,Administration
Land Registry,Land Registry,20/01/2014,Marketing Services Team,Stationery National Contracts,Banner Business Services Ltd,Large,990562,107.25,Stationery National Contracts,Administration
Land Registry,Land Registry,20/01/2014,HR,Stationery National Contracts,Banner Business Services Ltd,Large,990562,123.45,Stationery National Contracts,Administration
Land Registry,Land Registry,20/01/2014,Chief Executives Office,Stationery National Contracts,Banner Business Services Ltd,Large,990562,21.29,Stationery National Contracts,Administration
Land Registry,Land Registry,20/01/2014,Internal Solutions Group,Stationery National Contracts,Banner Business Services Ltd,Large,990562,679.04,Stationery National Contracts,Administration
Land Registry,Land Registry,20/01/2014,Central RFS,Stationery National Contracts,Banner Business Services Ltd,Large,990562,397.77,Stationery National Contracts,Administration
Land Registry,Land Registry,20/01/2014,Nottingham Office,Rates Payable,Nottingham City Council,Large,477957,40642,Rates Payable,Administration
Land Registry,Land Registry,22/01/2014,IS Service Delivery,Computer Equipment Maintenance,CGI IT UK Limited,Large,990689,69750,Computer Equipment Maintenance,Administration
Land Registry,Land Registry,23/01/2014,Guarantee & Litigation,Ind Legal Costs,Treasury Solicitors,Large,991391,23006.62,Indemnity Legal Costs,Administration
Land Registry,Land Registry,24/01/2014,Finance Director,Professional Services,Lane Clark & Peacock LLP,Large,991703,30204,Professional Services,Administration
Land Registry,Land Registry,24/01/2014,Business Continuity,Travel & Subsistence General Duty,Redfern Travel Ltd,Large,991709,70.98,Travel & Subsistence General Duty,Administration
Land Registry,Land Registry,24/01/2014,Director of Information Systems,Travel & Subsistence General Duty,Redfern Travel Ltd,Large,991709,205.54,Travel & Subsistence General Duty,Administration
Land Registry,Land Registry,24/01/2014,Peterborough Office,Travel & Subsistence General Duty,Redfern Travel Ltd,Large,991709,-469.27,Travel & Subsistence General Duty,Administration
Land Registry,Land Registry,24/01/2014,Employee & Management Support Manager,Travel & Subsistence General Duty,Redfern Travel Ltd,Large,991709,329.31,Travel & Subsistence General Duty,Administration
Land Registry,Land Registry,24/01/2014,Croydon Office,Travel & Subsistence General Duty,Redfern Travel Ltd,Large,991709,30.99,Travel & Subsistence General Duty,Administration
Land Registry,Land Registry,24/01/2014,Central Facilities Management Team,Travel & Subsistence General Duty,Redfern Travel Ltd,Large,991709,1291.99,Travel & Subsistence General Duty,Administration
Land Registry,Land Registry,24/01/2014,Plymouth Office,Travel & Subsistence General Duty,Redfern Travel Ltd,Large,991709,82.41,Travel & Subsistence General Duty,Administration
Land Registry,Land Registry,24/01/2014,IS Service Delivery,Travel & Subsistence General Duty,Redfern Travel Ltd,Large,991709,1914.58,Travel & Subsistence General Duty,Administration
Land Registry,Land Registry,24/01/2014,Survey & Mapping Services,Travel & Subsistence General Duty,Redfern Travel Ltd,Large,991709,114.34,Travel & Subsistence General Duty,Administration
Land Registry,Land Registry,24/01/2014,Leicester Office,Travel & Subsistence General Duty,Redfern Travel Ltd,Large,991709,298.99,Travel & Subsistence General Duty,Administration
Land Registry,Land Registry,24/01/2014,Property Asset Management Group,Travel & Subsistence General Duty,Redfern Travel Ltd,Large,991709,778.66,Travel & Subsistence General Duty,Administration
Land Registry,Land Registry,24/01/2014,Coventry Office,Travel & Subsistence General Duty,Redfern Travel Ltd,Large,991709,421.78,Travel & Subsistence General Duty,Administration
Land Registry,Land Registry,24/01/2014,Durham Office,Travel & Subsistence General Duty,Redfern Travel Ltd,Large,991709,198.86,Travel & Subsistence General Duty,Administration
Land Registry,Land Registry,24/01/2014,Nottingham Office,Travel & Subsistence General Duty,Redfern Travel Ltd,Large,991709,77.01,Travel & Subsistence General Duty,Administration
Land Registry,Land Registry,24/01/2014,Director of Legal Services,Travel & Subsistence General Duty,Redfern Travel Ltd,Large,991709,455.01,Travel & Subsistence General Duty,Administration
Land Registry,Land Registry,24/01/2014,Corporate Legal Services,Travel & Subsistence General Duty,Redfern Travel Ltd,Large,991709,161.09,Travel & Subsistence General Duty,Administration
Land Registry,Land Registry,24/01/2014,Guarantee & Litigation,Travel & Subsistence General Duty,Redfern Travel Ltd,Large,991709,78.82,Travel & Subsistence General Duty,Administration
Land Registry,Land Registry,24/01/2014,Registration Legal Services Group,Travel & Subsistence General Duty,Redfern Travel Ltd,Large,991709,113.34,Travel & Subsistence General Duty,Administration
Land Registry,Land Registry,24/01/2014,Learning and Development,Travel & Subsistence General Duty,Redfern Travel Ltd,Large,991709,926.61,Travel & Subsistence General Duty,Administration
Land Registry,Land Registry,24/01/2014,Governance & Policy,Travel & Subsistence General Duty,Redfern Travel Ltd,Large,991709,678.36,Travel & Subsistence General Duty,Administration
Land Registry,Land Registry,24/01/2014,Finance Group,Travel & Subsistence General Duty,Redfern Travel Ltd,Large,991709,156.81,Travel & Subsistence General Duty,Administration
Land Registry,Land Registry,24/01/2014,Business Development,Travel & Subsistence General Duty,Redfern Travel Ltd,Large,991709,861.29,Travel & Subsistence General Duty,Administration
Land Registry,Land Registry,24/01/2014,Internal Solutions Group,Travel & Subsistence General Duty,Redfern Travel Ltd,Large,991709,1378.73,Travel & Subsistence General Duty,Administration
Land Registry,Land Registry,24/01/2014,Internal Audit,Travel & Subsistence General Duty,Redfern Travel Ltd,Large,991709,683.33,Travel & Subsistence General Duty,Administration
Land Registry,Land Registry,24/01/2014,Customer Services,Travel & Subsistence General Duty,Redfern Travel Ltd,Large,991709,614.1,Travel & Subsistence General Duty,Administration
Land Registry,Land Registry,24/01/2014,International Unit,Travel & Subsistence General Duty,Redfern Travel Ltd,Large,991709,6615.66,Travel & Subsistence General Duty,Administration
Land Registry,Land Registry,24/01/2014,Projects and Programme Centre,Travel & Subsistence General Duty,Redfern Travel Ltd,Large,991709,184.61,Travel & Subsistence General Duty,Administration
Land Registry,Land Registry,24/01/2014,Corp Procurement,Travel & Subsistence General Duty,Redfern Travel Ltd,Large,991709,550.61,Travel & Subsistence General Duty,Administration
Land Registry,Land Registry,24/01/2014,Commercial Director,Travel & Subsistence General Duty,Redfern Travel Ltd,Large,991709,234.73,Travel & Subsistence General Duty,Administration
Land Registry,Land Registry,24/01/2014,Product Development & Management,Travel & Subsistence General Duty,Redfern Travel Ltd,Large,991709,351.86,Travel & Subsistence General Duty,Administration
Land Registry,Land Registry,24/01/2014,Marketing Services Team,Travel & Subsistence General Duty,Redfern Travel Ltd,Large,991709,50.9,Travel & Subsistence General Duty,Administration
Land Registry,Land Registry,24/01/2014,HR,Travel & Subsistence General Duty,Redfern Travel Ltd,Large,991709,5678.22,Travel & Subsistence General Duty,Administration
Land Registry,Land Registry,24/01/2014,Research & Data Mining,Travel & Subsistence General Duty,Redfern Travel Ltd,Large,991709,617.87,Travel & Subsistence General Duty,Administration
Land Registry,Land Registry,24/01/2014,Commercial & Customer Strategy & Performance,Travel & Subsistence General Duty,Redfern Travel Ltd,Large,991709,216.1,Travel & Subsistence General Duty,Administration
Land Registry,Land Registry,24/01/2014,Central Operations Group,Travel & Subsistence General Duty,Redfern Travel Ltd,Large,991709,2372.98,Travel & Subsistence General Duty,Administration
Land Registry,Land Registry,24/01/2014,Chief Executives Office,Travel & Subsistence General Duty,Redfern Travel Ltd,Large,991709,771.03,Travel & Subsistence General Duty,Administration
Land Registry,Land Registry,24/01/2014,Dir: HR,Travel & Subsistence General Duty,Redfern Travel Ltd,Large,991709,3281,Travel & Subsistence General Duty,Administration
Land Registry,Land Registry,24/01/2014,Dir: Legal Services,Travel & Subsistence General Duty,Redfern Travel Ltd,Large,991709,366.57,Travel & Subsistence General Duty,Administration
Land Registry,Land Registry,24/01/2014,Dir: (Statutory) Commercial & Customer,Travel & Subsistence General Duty,Redfern Travel Ltd,Large,991709,1528.58,Travel & Subsistence General Duty,Administration
Land Registry,Land Registry,24/01/2014,Dir: Finance,Travel & Subsistence General Duty,Redfern Travel Ltd,Large,991709,41.97,Travel & Subsistence General Duty,Administration
Land Registry,Land Registry,24/01/2014,Strategy Team,Travel & Subsistence General Duty,Redfern Travel Ltd,Large,991709,145.86,Travel & Subsistence General Duty,Administration
Land Registry,Land Registry,27/01/2014,Durham Office,Rates Payable,Durham County Council,Large,478193,22877,Rates Payable,Administration
Land Registry,Land Registry,27/01/2014,Peterborough Office,Rates Payable,Peterborough City Council,Large,478199,2591,Rates Payable,Administration
Land Registry,Land Registry,27/01/2014,Governance & Policy,Rates Payable,South Hams District Council,Large,478201,8720,Rates Payable,Administration
Land Registry,Land Registry,27/01/2014,Nottingham Office,Rates Payable,Nottingham City Council,Large,801359,199.02,Rates Payable,Administration
Land Registry,Land Registry,29/01/2014,IS Service Delivery,Data Network Lines,British Telecommunications Plc,Large,992608,2033.18,Data Network Lines,Administration
Land Registry,Land Registry,29/01/2014,Central Facilities Management Team,Telephone Costs,British Telecommunications Plc,Large,992608,5612.58,Telephone Costs,Administration
Land Registry,Land Registry,29/01/2014,RFS4 - Coventry,Telephone Costs,British Telecommunications Plc,Large,992608,37.89,Telephone Costs,Administration
Land Registry,Land Registry,29/01/2014,Independent Complaints Reviewer,Telephone Costs,British Telecommunications Plc,Large,992608,744.74,Telephone Costs,Administration
Land Registry,Land Registry,29/01/2014,Governance & Policy,Telephone Costs,British Telecommunications Plc,Large,992608,6792.16,Telephone Costs,Administration
Land Registry,Land Registry,29/01/2014,Birkenhead Office,Telephone Costs,British Telecommunications Plc,Large,992608,2583.1,Telephone Costs,Administration
Land Registry,Land Registry,29/01/2014,Coventry Office,Telephone Costs,British Telecommunications Plc,Large,992608,1815.89,Telephone Costs,Administration
Land Registry,Land Registry,29/01/2014,Croydon Office,Telephone Costs,British Telecommunications Plc,Large,992608,4546.57,Telephone Costs,Administration
Land Registry,Land Registry,29/01/2014,Durham Office,Telephone Costs,British Telecommunications Plc,Large,992608,4046.77,Telephone Costs,Administration
Land Registry,Land Registry,29/01/2014,Gloucester Office,Telephone Costs,British Telecommunications Plc,Large,992608,4889.99,Telephone Costs,Administration
Land Registry,Land Registry,29/01/2014,Hull Office,Telephone Costs,British Telecommunications Plc,Large,992608,113.67,Telephone Costs,Administration
Land Registry,Land Registry,29/01/2014,Fylde Office,Telephone Costs,British Telecommunications Plc,Large,992608,2865.82,Telephone Costs,Administration
Land Registry,Land Registry,29/01/2014,Leicester Office,Telephone Costs,British Telecommunications Plc,Large,992608,1954.57,Telephone Costs,Administration
Land Registry,Land Registry,29/01/2014,Nottingham Office,Telephone Costs,British Telecommunications Plc,Large,992608,5634.64,Telephone Costs,Administration
Land Registry,Land Registry,29/01/2014,Peterborough Office,Telephone Costs,British Telecommunications Plc,Large,992608,2181.13,Telephone Costs,Administration
Land Registry,Land Registry,29/01/2014,Plymouth Office,Telephone Costs,British Telecommunications Plc,Large,992608,3030.6,Telephone Costs,Administration
Land Registry,Land Registry,29/01/2014,Telford Office,Telephone Costs,British Telecommunications Plc,Large,992608,2128.34,Telephone Costs,Administration
Land Registry,Land Registry,29/01/2014,Wales Office,Telephone Costs,British Telecommunications Plc,Large,992608,5116.62,Telephone Costs,Administration
Land Registry,Land Registry,29/01/2014,Weymouth Office,Telephone Costs,British Telecommunications Plc,Large,992608,3244.21,Telephone Costs,Administration
Land Registry,Land Registry,29/01/2014,IS Service Delivery,Telephone Costs,British Telecommunications Plc,Large,992608,13308,Telephone Costs,Administration
Land Registry,Land Registry,29/01/2014,Croydon Office,Data Network Lines,British Telecommunications Plc,Large,992608,57,Data Network Lines,Administration
Land Registry,Land Registry,29/01/2014,Gloucester Office,Data Network Lines,British Telecommunications Plc,Large,992608,141,Data Network Lines,Administration
Land Registry,Land Registry,29/01/2014,Coventry Office,Data Network Lines,British Telecommunications Plc,Large,992608,223.12,Data Network Lines,Administration
Land Registry,Land Registry,29/01/2014,Fylde Office,Data Network Lines,British Telecommunications Plc,Large,992608,195,Data Network Lines,Administration
Land Registry,Land Registry,29/01/2014,Nottingham Office,Data Network Lines,British Telecommunications Plc,Large,992608,793.11,Data Network Lines,Administration
Land Registry,Land Registry,29/01/2014,Wales Office,Data Network Lines,British Telecommunications Plc,Large,992608,195,Data Network Lines,Administration
Land Registry,Land Registry,29/01/2014,Central Operations Group,Data Network Lines,British Telecommunications Plc,Large,992608,83.25,Data Network Lines,Administration
Land Registry,Land Registry,29/01/2014,IS Service Delivery,Computer Equipment Maintenance,Specialist Computer Centres Plc - SCC,Large,992610,111714.54,Computer Equipment Maintenance,Administration
Land Registry,Land Registry,30/01/2014,Dir: HR,Consultancy Non-IT Implement,Deloitte MCS Ltd,Large,992838,225612,Consultancy Non-IT Implement,Administration
Land Registry,Land Registry,31/01/2014,Survey & Mapping Services,Merchandise (Corporate Samples),Ordnance Survey,Large,993076,701277,Merchandise (Corporate Samples),Administration
Land Registry,Land Registry,31/01/2014,Business Continuity,Travel & Subsistence General Duty,Redfern Travel Ltd,Large,993078,338.92,Travel & Subsistence General Duty,Administration
Land Registry,Land Registry,31/01/2014,Director of Information Systems,Travel & Subsistence General Duty,Redfern Travel Ltd,Large,993078,432.86,Travel & Subsistence General Duty,Administration
Land Registry,Land Registry,31/01/2014,Employee & Management Support Manager,Travel & Subsistence General Duty,Redfern Travel Ltd,Large,993078,-83.76,Travel & Subsistence General Duty,Administration
Land Registry,Land Registry,31/01/2014,Croydon Office,Travel & Subsistence General Duty,Redfern Travel Ltd,Large,993078,247.41,Travel & Subsistence General Duty,Administration
Land Registry,Land Registry,31/01/2014,Central Facilities Management Team,Travel & Subsistence General Duty,Redfern Travel Ltd,Large,993078,1537.6,Travel & Subsistence General Duty,Administration
Land Registry,Land Registry,31/01/2014,Wales Office,Travel & Subsistence General Duty,Redfern Travel Ltd,Large,993078,77.26,Travel & Subsistence General Duty,Administration
Land Registry,Land Registry,31/01/2014,Fylde Office,Travel & Subsistence General Duty,Redfern Travel Ltd,Large,993078,136.36,Travel & Subsistence General Duty,Administration
Land Registry,Land Registry,31/01/2014,Gloucester Office,Travel & Subsistence General Duty,Redfern Travel Ltd,Large,993078,218.5,Travel & Subsistence General Duty,Administration
Land Registry,Land Registry,31/01/2014,IS Service Delivery,Travel & Subsistence General Duty,Redfern Travel Ltd,Large,993078,608.18,Travel & Subsistence General Duty,Administration
Land Registry,Land Registry,31/01/2014,Survey & Mapping Services,Travel & Subsistence General Duty,Redfern Travel Ltd,Large,993078,218.48,Travel & Subsistence General Duty,Administration
Land Registry,Land Registry,31/01/2014,Property Asset Management Group,Travel & Subsistence General Duty,Redfern Travel Ltd,Large,993078,898.33,Travel & Subsistence General Duty,Administration
Land Registry,Land Registry,31/01/2014,Coventry Office,Travel & Subsistence General Duty,Redfern Travel Ltd,Large,993078,77.26,Travel & Subsistence General Duty,Administration
Land Registry,Land Registry,31/01/2014,Durham Office,Travel & Subsistence General Duty,Redfern Travel Ltd,Large,993078,225.52,Travel & Subsistence General Duty,Administration
Land Registry,Land Registry,31/01/2014,Nottingham Office,Travel & Subsistence General Duty,Redfern Travel Ltd,Large,993078,275.22,Travel & Subsistence General Duty,Administration
Land Registry,Land Registry,31/01/2014,Birkenhead Office,Travel & Subsistence General Duty,Redfern Travel Ltd,Large,993078,77.26,Travel & Subsistence General Duty,Administration
Land Registry,Land Registry,31/01/2014,Finance Director,Travel & Subsistence General Duty,Redfern Travel Ltd,Large,993078,175.65,Travel & Subsistence General Duty,Administration
Land Registry,Land Registry,31/01/2014,Director of Legal Services,Travel & Subsistence General Duty,Redfern Travel Ltd,Large,993078,610.64,Travel & Subsistence General Duty,Administration
Land Registry,Land Registry,31/01/2014,Independent Complaints Reviewer,Travel & Subsistence General Duty,Redfern Travel Ltd,Large,993078,90.69,Travel & Subsistence General Duty,Administration
Land Registry,Land Registry,31/01/2014,Corporate Legal Services,Travel & Subsistence General Duty,Redfern Travel Ltd,Large,993078,207.83,Travel & Subsistence General Duty,Administration
Land Registry,Land Registry,31/01/2014,Guarantee & Litigation,Travel & Subsistence General Duty,Redfern Travel Ltd,Large,993078,437.57,Travel & Subsistence General Duty,Administration
Land Registry,Land Registry,31/01/2014,Registration Legal Services Group,Travel & Subsistence General Duty,Redfern Travel Ltd,Large,993078,177.36,Travel & Subsistence General Duty,Administration
Land Registry,Land Registry,31/01/2014,Learning and Development,Travel & Subsistence General Duty,Redfern Travel Ltd,Large,993078,89.93,Travel & Subsistence General Duty,Administration
Land Registry,Land Registry,31/01/2014,Governance & Policy,Travel & Subsistence General Duty,Redfern Travel Ltd,Large,993078,477.49,Travel & Subsistence General Duty,Administration
Land Registry,Land Registry,31/01/2014,Finance Group,Travel & Subsistence General Duty,Redfern Travel Ltd,Large,993078,181.02,Travel & Subsistence General Duty,Administration
Land Registry,Land Registry,31/01/2014,Business Development,Travel & Subsistence General Duty,Redfern Travel Ltd,Large,993078,308.88,Travel & Subsistence General Duty,Administration
Land Registry,Land Registry,31/01/2014,Internal Solutions Group,Travel & Subsistence General Duty,Redfern Travel Ltd,Large,993078,912.88,Travel & Subsistence General Duty,Administration
Land Registry,Land Registry,31/01/2014,Business Planning Assurance and Risk Management,Travel & Subsistence General Duty,Redfern Travel Ltd,Large,993078,18.5,Travel & Subsistence General Duty,Administration
Land Registry,Land Registry,31/01/2014,Internal Audit,Travel & Subsistence General Duty,Redfern Travel Ltd,Large,993078,263.68,Travel & Subsistence General Duty,Administration
Land Registry,Land Registry,31/01/2014,Customer Services,Travel & Subsistence General Duty,Redfern Travel Ltd,Large,993078,122.42,Travel & Subsistence General Duty,Administration
Land Registry,Land Registry,31/01/2014,International Unit,Travel & Subsistence General Duty,Redfern Travel Ltd,Large,993078,1240.9,Travel & Subsistence General Duty,Administration
Land Registry,Land Registry,31/01/2014,Corp Procurement,Travel & Subsistence General Duty,Redfern Travel Ltd,Large,993078,418.88,Travel & Subsistence General Duty,Administration
Land Registry,Land Registry,31/01/2014,Commercial Director,Travel & Subsistence General Duty,Redfern Travel Ltd,Large,993078,398.81,Travel & Subsistence General Duty,Administration
Land Registry,Land Registry,31/01/2014,Product Development & Management,Travel & Subsistence General Duty,Redfern Travel Ltd,Large,993078,551.48,Travel & Subsistence General Duty,Administration
Land Registry,Land Registry,31/01/2014,HR,Travel & Subsistence General Duty,Redfern Travel Ltd,Large,993078,2692.02,Travel & Subsistence General Duty,Administration
Land Registry,Land Registry,31/01/2014,Research & Data Mining,Travel & Subsistence General Duty,Redfern Travel Ltd,Large,993078,1467.76,Travel & Subsistence General Duty,Administration
Land Registry,Land Registry,31/01/2014,Commercial & Customer Strategy & Performance,Travel & Subsistence General Duty,Redfern Travel Ltd,Large,993078,758.93,Travel & Subsistence General Duty,Administration
Land Registry,Land Registry,31/01/2014,Central Operations Group,Travel & Subsistence General Duty,Redfern Travel Ltd,Large,993078,1789.71,Travel & Subsistence General Duty,Administration
Land Registry,Land Registry,31/01/2014,Chief Executives Office,Travel & Subsistence General Duty,Redfern Travel Ltd,Large,993078,694.35,Travel & Subsistence General Duty,Administration
Land Registry,Land Registry,31/01/2014,Dir: (Add Value) Commercial & Customer,Travel & Subsistence General Duty,Redfern Travel Ltd,Large,993078,188.06,Travel & Subsistence General Duty,Administration
Land Registry,Land Registry,31/01/2014,Dir: HR,Travel & Subsistence General Duty,Redfern Travel Ltd,Large,993078,4440.11,Travel & Subsistence General Duty,Administration
Land Registry,Land Registry,31/01/2014,Dir: Operations,Travel & Subsistence General Duty,Redfern Travel Ltd,Large,993078,1719.19,Travel & Subsistence General Duty,Administration
Land Registry,Land Registry,31/01/2014,Dir: Legal Services,Travel & Subsistence General Duty,Redfern Travel Ltd,Large,993078,186.34,Travel & Subsistence General Duty,Administration
Land Registry,Land Registry,31/01/2014,Dir: Information Systems,Travel & Subsistence General Duty,Redfern Travel Ltd,Large,993078,52.01,Travel & Subsistence General Duty,Administration
Land Registry,Land Registry,31/01/2014,Dir: (Statutory) Commercial & Customer,Travel & Subsistence General Duty,Redfern Travel Ltd,Large,993078,464.77,Travel & Subsistence General Duty,Administration
Land Registry,Land Registry,31/01/2014,Dir: Finance,Travel & Subsistence General Duty,Redfern Travel Ltd,Large,993078,204.22,Travel & Subsistence General Duty,Administration
Land Registry,Land Registry,31/01/2014,Strategy Team,Travel & Subsistence General Duty,Redfern Travel Ltd,Large,993078,62.34,Travel & Subsistence General Duty,Administration
Land Registry,Land Registry,31/01/2014,Plymouth Office,Reprographic Copy Costs,Steria Limited,Large,993079,871.01,Reprographic Copy Costs,Administration
Land Registry,Land Registry,31/01/2014,Telford Office,Reprographic Copy Costs,Steria Limited,Large,993079,100.69,Reprographic Copy Costs,Administration
Land Registry,Land Registry,31/01/2014,Central Facilities Management Team,"Computer Equipment Purchases <1,000",Steria Limited,Large,993079,238.54,"Computer Equipment Purchases <1,000",Administration
Land Registry,Land Registry,31/01/2014,Wales Office,Reprographic Copy Costs,Steria Limited,Large,993079,682.67,Reprographic Copy Costs,Administration
Land Registry,Land Registry,31/01/2014,Coventry Office,Reprographic Copy Costs,Steria Limited,Large,993079,166.05,Reprographic Copy Costs,Administration
Land Registry,Land Registry,31/01/2014,Durham Office,Reprographic Copy Costs,Steria Limited,Large,993079,405.99,Reprographic Copy Costs,Administration
Land Registry,Land Registry,31/01/2014,IS Service Delivery,"Computer Equipment Purchases <1,000",Steria Limited,Large,993079,331.21,"Computer Equipment Purchases <1,000",Administration
Land Registry,Land Registry,31/01/2014,Fylde Office,Reprographic Copy Costs,Steria Limited,Large,993079,1148.98,Reprographic Copy Costs,Administration
Land Registry,Land Registry,31/01/2014,Peterborough Office,Reprographic Copy Costs,Steria Limited,Large,993079,204.82,Reprographic Copy Costs,Administration
Land Registry,Land Registry,31/01/2014,Croydon Office,Reprographic Copy Costs,Steria Limited,Large,993079,161.43,Reprographic Copy Costs,Administration
Land Registry,Land Registry,31/01/2014,Gloucester Office,Reprographic Copy Costs,Steria Limited,Large,993079,557.84,Reprographic Copy Costs,Administration
Land Registry,Land Registry,31/01/2014,Leicester Office,Reprographic Copy Costs,Steria Limited,Large,993079,367.19,Reprographic Copy Costs,Administration
Land Registry,Land Registry,31/01/2014,Weymouth Office,Reprographic Copy Costs,Steria Limited,Large,993079,544.77,Reprographic Copy Costs,Administration
Land Registry,Land Registry,31/01/2014,Hull Office,Reprographic Copy Costs,Steria Limited,Large,993079,608.09,Reprographic Copy Costs,Administration
Land Registry,Land Registry,31/01/2014,Nottingham Office,Reprographic Copy Costs,Steria Limited,Large,993079,684.6,Reprographic Copy Costs,Administration
Land Registry,Land Registry,31/01/2014,Birkenhead Office,Reprographic Copy Costs,Steria Limited,Large,993079,491.38,Reprographic Copy Costs,Administration
Land Registry,Land Registry,31/01/2014,Central Facilities Management Team,Waste Disposal,Steria Limited,Large,993079,553.87,Waste Disposal,Administration
Land Registry,Land Registry,31/01/2014,IS Service Delivery,Reprographic Copy Costs,Steria Limited,Large,993079,-62.6,Reprographic Copy Costs,Administration
Land Registry,Land Registry,31/01/2014,IS Service Delivery,DITI Printer Managed Service,Steria Limited,Large,993079,82449.73,IT Printer Managed Service,Administration
Land Registry,Land Registry,31/01/2014,Central RFS,RFS Outsourced Services,TNT (UK) Ltd,Large,993081,80882.49,File Store Outsourced Services,Administration
Land Registry,Land Registry,31/01/2014,Central RFS,RFS Outsourced Services,TNT (UK) Ltd,Large,993081,183320.82,File Store Outsourced Services,Administration
Land Registry,Land Registry,31/01/2014,Central RFS,RFS Outsourced Services,TNT (UK) Ltd,Large,993081,34302.66,File Store Outsourced Services,Administration
Land Registry,Land Registry,31/01/2014,Central RFS,RFS Outsourced Services,TNT (UK) Ltd,Large,993081,89356.43,File Store Outsourced Services,Administration
Land Registry,Land Registry,31/01/2014,Nottingham Office,Rates Payable,Nottingham City Council,Large,478387,32403.95,Rates Payable,Administration
Land Registry,Land Registry,31/01/2014,Nottingham Office,Rates Payable,Nottingham City Council,Large,478387,32403,Rates Payable,Administration
Land Registry,Land Registry,31/01/2014,Nottingham Office,Rates Payable,Nottingham City Council,Large,478387,32403,Rates Payable,Administration
Land Registry,Land Registry,31/01/2014,Nottingham Office,Rates Payable,Nottingham City Council,Large,478387,32403,Rates Payable,Administration
